Workbook

Sheet 色の検索
J3: No | K3: 番号 | L3: 色 | M3: R | N3: G | O3: B | Q3: 誤差 | X3: 番号 | Y3: 色 | Z3: R | AA3: G | AB3: B | AD3: 番号 | AE3: 色 | AF3: R | AG3: G | AH3: B | AJ3: 番号 | AK3: 色 | AL3: R | AM3: G | AN3: B | AP3: 番号 | AQ3: 色 | AR3: R | AS3: G | AT3: B | AV3: 番号 | AW3: 色 | AX3: R | AY3: G | AZ3: B | BB3: 番号 | BC3: 色 | BD3: R | BE3: G | BF3: B | BH3: 番号 | BI3: 色 | BJ3: R | BK3: G | BL3: B
J4: 1 | K4: 351 | M4: 255 | N4: 216 | O4: 209 | Q4: =ABS(M4-$B$11)+ABS(N4-$D$11)+ABS(O4-$F$11) -> 680 | X4: 351 | Z4: 255 | AA4: 216 | AB4: 209 | AD4: 220 | AF4: 246 | AG4: 212 | AH4: 203 | AJ4: 101 | AL4: 255 | AM4: 235 | AN4: 216 | AP4: 461 | AR4: 221 | AS4: 175 | AT4: 149 | AV4: 140 | AX4: 246 | AY4: 232 | AZ4: 183 | BB4: 572 | BD4: 233 | BE4: 212 | BF4: 147 | BH4: 629 | BJ4: 223 | BK4: 224 | BL4: 154
J5: 2 | K5: 352 | M5: 252 | N5: 208 | O5: 207 | Q5: =ABS(M5-$B$11)+ABS(N5-$D$11)+ABS(O5-$F$11) -> 667 | X5: 352 | Z5: 252 | AA5: 208 | AB5: 207 | AD5: 221 | AF5: 232 | AG5: 181 | AH5: 186 | AJ5: 102 | AL5: 244 | AM5: 207 | AN5: 198 | AP5: 462 | AR5: 213 | AS5: 154 | AT5: 122 | AV5: 141 | AX5: 244 | AY5: 225 | AZ5: 156 | BB5: 573 | BD5: 224 | BE5: 206 | BF5: 108 | BH5: 630A | BJ5: 193 | BK5: 196 | BL5: 105
J6: 3 | K6: 353 | M6: 232 | N6: 125 | O6: 151 | Q6: =ABS(M6-$B$11)+ABS(N6-$D$11)+ABS(O6-$F$11) -> 508 | X6: 353 | Z6: 232 | AA6: 125 | AB6: 151 | AD6: 2221 | AF6: 222 | AG6: 165 | AH6: 171 | AJ6: 103A | AL6: 233 | AM6: 194 | AN6: 187 | AP6: 463 | AR6: 194 | AS6: 118 | AT6: 95 | AV6: 142 | AX6: 248 | AY6: 211 | AZ6: 120 | BB6: 2573 | BD6: 213 | BE6: 172 | BF6: 82 | BH6: 631 | BJ6: 156 | BK6: 173 | BL6: 81
J7: 4 | K7: 354 | M7: 224 | N7: 97 | O7: 140 | Q7: =ABS(M7-$B$11)+ABS(N7-$D$11)+ABS(O7-$F$11) -> 461 | X7: 354 | Z7: 224 | AA7: 97 | AB7: 140 | AD7: 222 | AF7: 211 | AG7: 131 | AH7: 144 | AJ7: 104 | AL7: 228 | AM7: 164 | AN7: 162 | AP7: 464 | AR7: 179 | AS7: 90 | AT7: 72 | AV7: 143 | AX7: 244 | AY7: 187 | AZ7: 72 | BB7: 574 | BD7: 223 | BE7: 176 | BF7: 60 | BH7: 2631 | BJ7: 135 | BK7: 151 | BL7: 76
J8: 5 | K8: 480A | M8: 245 | N8: 203 | O8: 213 | Q8: =ABS(M8-$B$11)+ABS(N8-$D$11)+ABS(O8-$F$11) -> 661 | X8: 480A | Z8: 245 | AA8: 203 | AB8: 213 | AD8: 2222 | AF8: 196 | AG8: 108 | AH8: 124 | AJ8: 105 | AL8: 221 | AM8: 134 | AN8: 142 | AP8: 465 | AR8: 161 | AS8: 77 | AT8: 67 | AV8: 144A | AX8: 237 | AY8: 167 | AZ8: 37 | BB8: 575A | BD8: 192 | BE8: 146 | BF8: 86 | BH8: 632 | BJ8: 104 | BK8: 135 | BL8: 65
J9: 6 | K9: 2111 | M9: 242 | N9: 180 | O9: 191 | Q9: =ABS(M9-$B$11)+ABS(N9-$D$11)+ABS(O9-$F$11) -> 613 | X9: 2111 | Z9: 242 | AA9: 180 | AB9: 191 | AD9: 223 | AF9: 163 | AG9: 77 | AH9: 114 | AJ9: 1105 | AL9: 204 | AM9: 81 | AN9: 101 | AP9: 466 | AR9: 151 | AS9: 58 | AT9: 50 | AV9: 145 | AX9: 229 | AY9: 136 | AZ9: 33 | BB9: 576 | BD9: 160 | BE9: 103 | BF9: 26 | BH9: 633 | BJ9: 97 | BK9: 125 | BL9: 40
B10: R | D10: G | F10: B | J10: 7 | K10: 112 | M10: 238 | N10: 159 | O10: 181 | Q10: =ABS(M10-$B$11)+ABS(N10-$D$11)+ABS(O10-$F$11) -> 578 | X10: 112 | Z10: 238 | AA10: 159 | AB10: 181 | AD10: 2223 | AF10: 160 | AG10: 59 | AH10: 89 | AJ10: 2105 | AL10: 199 | AM10: 82 | AN10: 91 | AP10: 467 | AR10: 138 | AS10: 34 | AT10: 43 | AV10: 146 | AX10: 222 | AY10: 111 | AZ10: 29 | BB10: 577A | BD10: 146 | BE10: 94 | BF10: 44 | BH10: 634 | BJ10: 69 | BK10: 92 | BL10: 36
J11: 8 | K11: 113 | M11: 228 | N11: 103 | O11: 145 | Q11: =ABS(M11-$B$11)+ABS(N11-$D$11)+ABS(O11-$F$11) -> 476 | X11: 113 | Z11: 228 | AA11: 103 | AB11: 145 | AD11: 224 | AF11: 124 | AG11: 46 | AH11: 85 | AJ11: 106 | AL11: 195 | AM11: 56 | AN11: 79 | AP11: 185A | AR11: 247 | AS11: 189 | AT11: 149 | AV11: 147 | AX11: 200 | AY11: 78 | AZ11: 27 | BB11: 578 | BD11: 120 | BE11: 74 | BF11: 40 | BH11: 635A | BJ11: 78 | BK11: 91 | BL11: 38
J12: 9 | K12: 114 | M12: 220 | N12: 78 | O12: 136 | Q12: =ABS(M12-$B$11)+ABS(N12-$D$11)+ABS(O12-$F$11) -> 434 | X12: 114 | Z12: 220 | AA12: 78 | AB12: 136 | AD12: 2224 | AF12: 109 | AG12: 42 | AH12: 75 | AJ12: 107 | AL12: 177 | AM12: 39 | AN12: 73 | AP12: 2185 | AR12: 238 | AS12: 174 | AT12: 126 | AV12: 297 | AX12: 245 | AY12: 237 | AZ12: 126 | BB12: 771 | BD12: 222 | BE12: 196 | BF12: 77 | BH12: 636 | BJ12: 38 | BK12: 65 | BL12: 34
J13: 10 | K13: 2114 | M13: 215 | N13: 55 | O13: 115 | Q13: =ABS(M13-$B$11)+ABS(N13-$D$11)+ABS(O13-$F$11) -> 385 | X13: 2114 | Z13: 215 | AA13: 55 | AB13: 115 | AD13: 225 | AF13: 99 | AG13: 39 | AH13: 65 | AJ13: 2242 | AL13: 163 | AM13: 29 | AN13: 64 | AP13: 3185 | AR13: 217 | AS13: 137 | AT13: 88 | AV13: 2297 | AX13: 243 | AY13: 229 | AZ13: 94 | BB13: 772 | BD13: 212 | BE13: 169 | BF13: 30 | BH13: 637 | BJ13: 31 | BK13: 57 | BL13: 28
J14: 11 | K14: 115A | M14: 207 | N14: 31 | O14: 78 | Q14: =ABS(M14-$B$11)+ABS(N14-$D$11)+ABS(O14-$F$11) -> 316 | X14: 115A | Z14: 207 | AA14: 31 | AB14: 78 | AD14: 226 | AF14: 71 | AG14: 38 | AH14: 59 | AJ14: 108 | AL14: 151 | AM14: 28 | AN14: 48 | AP14: 186 | AR14: 194 | AS14: 103 | AT14: 48 | AV14: 300 | AX14: 242 | AY14: 220 | AZ14: 39 | BB14: 773 | BD14: 187 | BE14: 146 | BF14: 28 | BH14: 116 | BJ14: 184 | BK14: 194 | BL14: 98
J15: 12 | K15: 2115 | M15: 201 | N15: 28 | O15: 74 | Q15: =ABS(M15-$B$11)+ABS(N15-$D$11)+ABS(O15-$F$11) -> 303 | X15: 2115 | Z15: 201 | AA15: 28 | AB15: 74 | AD15: 811 | AF15: 249 | AG15: 198 | AH15: 195 | AJ15: 4300 | AL15: 132 | AM15: 31 | AN15: 71 | AP15: 2186 | AR15: 186 | AS15: 73 | AT15: 59 | AV15: 301 | AX15: 241 | AY15: 204 | AZ15: 33 | BB15: 774 | BD15: 161 | BE15: 115 | BF15: 27 | BH15: 117 | BJ15: 163 | BK15: 183 | BL15: 86
J16: 13 | K16: 3115 | M16: 195 | N16: 24 | O16: 76 | Q16: =ABS(M16-$B$11)+ABS(N16-$D$11)+ABS(O16-$F$11) -> 295 | X16: 3115 | Z16: 195 | AA16: 24 | AB16: 76 | AD16: 812 | AF16: 234 | AG16: 159 | AH16: 164 | AJ16: 111 | AL16: 248 | AM16: 210 | AN16: 209 | AP16: 187 | AR16: 176 | AS16: 51 | AT16: 49 | AV16: 2301 | AX16: 240 | AY16: 191 | AZ16: 28 | BB16: 775A | BD16: 118 | BE16: 97 | BF16: 40 | BH16: 2117 | BJ16: 130 | BK16: 156 | BL16: 82
J17: 14 | K17: 203 | M17: 243 | N17: 126 | O17: 153 | Q17: =ABS(M17-$B$11)+ABS(N17-$D$11)+ABS(O17-$F$11) -> 522 | X17: 203 | Z17: 243 | AA17: 126 | AB17: 153 | AD17: 813 | AF17: 213 | AG17: 111 | AH17: 125 | AJ17: 832 | AL17: 240 | AM17: 201 | AN17: 194 | AP17: 188 | AR17: 162 | AS17: 32 | AT17: 40 | AV17: 302 | AX17: 234 | AY17: 179 | AZ17: 24 | BB17: 776 | BD17: 113 | BE17: 79 | BF17: 42 | BH17: 118 | BJ17: 112 | BK17: 148 | BL17: 74
J18: 15 | K18: 204 | M18: 218 | N18: 70 | O18: 122 | Q18: =ABS(M18-$B$11)+ABS(N18-$D$11)+ABS(O18-$F$11) -> 410 | X18: 204 | Z18: 218 | AA18: 70 | AB18: 122 | AD18: 814 | AF18: 178 | AG18: 68 | AH18: 95 | AJ18: 833 | AL18: 239 | AM18: 171 | AN18: 172 | AP18: 402 | AR18: 248 | AS18: 187 | AT18: 130 | AV18: 3297 | AX18: 240 | AY18: 234 | AZ18: 98 | BB18: 820 | BD18: 227 | BE18: 222 | BF18: 122 | BH18: 2118 | BJ18: 107 | BK18: 134 | BL18: 55
J19: 16 | K19: 205A | M19: 214 | N19: 47 | O19: 99 | Q19: =ABS(M19-$B$11)+ABS(N19-$D$11)+ABS(O19-$F$11) -> 360 | X19: 205A | Z19: 214 | AA19: 47 | AB19: 99 | AD19: 815 | AF19: 156 | AG19: 52 | AH19: 87 | AJ19: 834A | AL19: 216 | AM19: 120 | AN19: 121 | AP19: 1402 | AR19: 240 | AS19: 163 | AT19: 95 | AV19: 298 | AX19: 242 | AY19: 221 | AZ19: 78 | BB19: 821 | BD19: 223 | BE19: 201 | BF19: 90 | BH19: 119 | BJ19: 52 | BK19: 98 | BL19: 49
J20: 17 | K20: 240 | M20: 195 | N20: 27 | O20: 63 | Q20: =ABS(M20-$B$11)+ABS(N20-$D$11)+ABS(O20-$F$11) -> 285 | X20: 240 | Z20: 195 | AA20: 27 | AB20: 63 | AD20: 816A | AF20: 129 | AG20: 33 | AH20: 71 | AJ20: 2835 | AL20: 210 | AM20: 72 | AN20: 95 | AP20: 2402 | AR20: 227 | AS20: 134 | AT20: 75 | AV20: 299 | AX20: 235 | AY20: 230 | AZ20: 50 | BB20: 822 | BD20: 180 | BE20: 157 | BF20: 55 | BH20: 120 | BJ20: 14 | BK20: 89 | BL20: 46
J21: 18 | K21: 241A | M21: 173 | N21: 26 | O21: 70 | Q21: =ABS(M21-$B$11)+ABS(N21-$D$11)+ABS(O21-$F$11) -> 269 | X21: 241A | Z21: 173 | AA21: 26 | AB21: 70 | AD21: 431 | AF21: 221 | AG21: 163 | AH21: 162 | AJ21: 206 | AL21: 209 | AM21: 38 | AN21: 72 | AP21: 403 | AR21: 224 | AS21: 109 | AT21: 64 | AV21: 2299 | AX21: 243 | AY21: 222 | AZ21: 41 | BB21: 823 | BD21: 141 | BE21: 126 | BF21: 41 | BH21: 2120 | BJ21: 21 | BK21: 96 | BL21: 57
J22: 19 | K22: 1241 | M22: 143 | N22: 30 | O22: 58 | Q22: =ABS(M22-$B$11)+ABS(N22-$D$11)+ABS(O22-$F$11) -> 231 | X22: 1241 | Z22: 143 | AA22: 30 | AB22: 58 | AD22: 432A | AF22: 192 | AG22: 123 | AH22: 142 | AJ22: 836 | AL22: 199 | AM22: 47 | AN22: 60 | AP22: 404 | AR22: 196 | AS22: 80 | AT22: 55 | AV22: 3299 | AX22: 235 | AY22: 214 | AZ22: 33 | BB22: 825 | BD22: 121 | BE22: 96 | BF22: 30 | BH22: 121 | BJ22: 7 | BK22: 63 | BL22: 38
J23: 20 | K23: 242 | M23: 142 | N23: 32 | O23: 69 | Q23: =ABS(M23-$B$11)+ABS(N23-$D$11)+ABS(O23-$F$11) -> 243 | X23: 242 | Z23: 142 | AA23: 32 | AB23: 69 | AD23: 433 | AF23: 163 | AG23: 86 | AH23: 102 | AJ23: 838 | AL23: 202 | AM23: 34 | AN23: 57 | AP23: 405 | AR23: 186 | AS23: 77 | AT23: 48 | AV23: 2004 | AX23: 228 | AY23: 208 | AZ23: 51 | BB23: 826 | BD23: 84 | BE23: 76 | BF23: 27 | BH23: 122 | BJ23: 6 | BK23: 42 | BL23: 30
J24: 21 | K24: 2241 | M24: 120 | N24: 32 | O24: 56 | Q24: =ABS(M24-$B$11)+ABS(N24-$D$11)+ABS(O24-$F$11) -> 208 | X24: 2241 | Z24: 120 | AA24: 32 | AB24: 56 | AD24: 434 | AF24: 139 | AG24: 75 | AH24: 91 | AJ24: 2001 | AL24: 207 | AM24: 29 | AN24: 107 | AP24: 406 | AR24: 164 | AS24: 45 | AT24: 47 | AV24: 2005 | AX24: 220 | AY24: 201 | AZ24: 47 | BB24: 671 | BD24: 186 | BE24: 177 | BF24: 50 | BH24: 2010 | BJ24: 196 | BK24: 201 | BL24: 49
J25: 22 | K25: 245 | M25: 86 | N25: 33 | O25: 61 | Q25: =ABS(M25-$B$11)+ABS(N25-$D$11)+ABS(O25-$F$11) -> 180 | X25: 245 | Z25: 86 | AA25: 33 | AB25: 61 | AD25: 435 | AF25: 111 | AG25: 49 | AH25: 70 | AJ25: 2002 | AL25: 165 | AM25: 24 | AN25: 100 | AP25: 440 | AR25: 240 | AS25: 160 | AT25: 133 | AV25: 2006 | AX25: 213 | AY25: 176 | AZ25: 35 | BB25: 673 | BD25: 132 | BE25: 119 | BF25: 49 | BH25: 2011 | BJ25: 158 | BK25: 175 | BL25: 35
J26: 23 | K26: 2245 | M26: 74 | N26: 29 | O26: 60 | Q26: =ABS(M26-$B$11)+ABS(N26-$D$11)+ABS(O26-$F$11) -> 163 | X26: 2245 | Z26: 74 | AA26: 29 | AB26: 60 | AD26: 437 | AF26: 91 | AG26: 28 | AH26: 55 | AJ26: 2003 | AL26: 122 | AM26: 31 | AN26: 98 | AP26: 441 | AR26: 236 | AS26: 139 | AT26: 107 | AV26: 2007 | AX26: 229 | AY26: 224 | AZ26: 72 | BB26: 674 | BD26: 112 | BE26: 106 | BF26: 44 | BH26: 2012 | BJ26: 96 | BK26: 114 | BL26: 64
J27: 24 | K27: 246 | M27: 70 | N27: 24 | O27: 52 | Q27: =ABS(M27-$B$11)+ABS(N27-$D$11)+ABS(O27-$F$11) -> 146 | X27: 246 | Z27: 70 | AA27: 24 | AB27: 52 | AD27: 232 | AF27: 221 | AG27: 165 | AH27: 168 | AJ27: 341 | AL27: 234 | AM27: 191 | AN27: 146 | AP27: 443 | AR27: 226 | AS27: 99 | AT27: 67 | AV27: 2008 | AX27: 237 | AY27: 221 | AZ27: 47 | BB27: 675A | BD27: 86 | BE27: 95 | BF27: 40 | BH27: 2013 | BJ27: 70 | BK27: 98 | BL27: 50
J28: 25 | K28: 247 | M28: 63 | N28: 29 | O28: 53 | Q28: =ABS(M28-$B$11)+ABS(N28-$D$11)+ABS(O28-$F$11) -> 145 | X28: 247 | Z28: 63 | AA28: 29 | AB28: 53 | AD28: 233 | AF28: 212 | AG28: 158 | AH28: 156 | AJ28: 2341 | AL28: 228 | AM28: 146 | AN28: 99 | AP28: 444A | AR28: 216 | AS28: 65 | AT28: 56 | AV28: 2009 | AX28: 204 | AY28: 187 | AZ28: 45 | BB28: 676 | BD28: 62 | BE28: 63 | BF28: 31 | BH28: 2014 | BJ28: 54 | BK28: 79 | BL28: 39
J29: 26 | K29: 499 | M29: 249 | N29: 175 | O29: 190 | Q29: =ABS(M29-$B$11)+ABS(N29-$D$11)+ABS(O29-$F$11) -> 614 | X29: 499 | Z29: 249 | AA29: 175 | AB29: 190 | AD29: 234 | AF29: 185 | AG29: 138 | AH29: 144 | AJ29: 342 | AL29: 226 | AM29: 120 | AN29: 96 | AP29: 445A | AR29: 210 | AS29: 38 | AT29: 52 | AV29: 700 | AX29: 247 | AY29: 217 | AZ29: 93 | BB29: 681 | BD29: 219 | BE29: 220 | BF29: 176 | BH29: 323 | BJ29: 201 | BK29: 211 | BL29: 114
J30: 27 | K30: 501 | M30: 233 | N30: 138 | O30: 170 | Q30: =ABS(M30-$B$11)+ABS(N30-$D$11)+ABS(O30-$F$11) -> 541 | X30: 501 | Z30: 233 | AA30: 138 | AB30: 170 | AD30: 235 | AF30: 145 | AG30: 97 | AH30: 109 | AJ30: 343 | AL30: 207 | AM30: 62 | AN30: 57 | AP30: 340 | AR30: 246 | AS30: 216 | AT30: 182 | AV30: 701 | AX30: 236 | AY30: 197 | AZ30: 66 | BB30: 682 | BD30: 207 | BE30: 212 | BF30: 148 | BH30: 2323 | BJ30: 189 | BK30: 206 | BL30: 100
J31: 28 | K31: 502 | M31: 214 | N31: 91 | O31: 138 | Q31: =ABS(M31-$B$11)+ABS(N31-$D$11)+ABS(O31-$F$11) -> 443 | X31: 502 | Z31: 214 | AA31: 91 | AB31: 138 | AD31: 236 | AF31: 105 | AG31: 64 | AH31: 68 | AJ31: 2343 | AL31: 201 | AM31: 51 | AN31: 53 | AP31: 750A | AR31: 239 | AS31: 189 | AT31: 154 | AV31: 702 | AX31: 230 | AY31: 178 | AZ31: 30 | BB31: 683 | BD31: 188 | BE31: 184 | BF31: 111 | BH31: 324 | BJ31: 147 | BK31: 180 | BL31: 39
J32: 29 | K32: 503 | M32: 200 | N32: 69 | O32: 123 | Q32: =ABS(M32-$B$11)+ABS(N32-$D$11)+ABS(O32-$F$11) -> 392 | X32: 503 | Z32: 200 | AA32: 69 | AB32: 123 | AD32: 3661 | AF32: 236 | AG32: 202 | AH32: 192 | AJ32: 344 | AL32: 189 | AM32: 38 | AN32: 45 | AP32: 752 | AR32: 235 | AS32: 158 | AT32: 104 | AV32: 2702 | AX32: 208 | AY32: 149 | AZ32: 19 | BB32: 684 | BD32: 133 | BE32: 138 | BF32: 72 | BH32: 325A | BJ32: 99 | BK32: 150 | BL32: 32
J33: 30 | K33: 504 | M33: 197 | N33: 60 | O33: 112 | Q33: =ABS(M33-$B$11)+ABS(N33-$D$11)+ABS(O33-$F$11) -> 369 | X33: 504 | Z33: 197 | AA33: 60 | AB33: 112 | AD33: 652 | AF33: 223 | AG33: 165 | AH33: 161 | AJ33: 345 | AL33: 183 | AM33: 27 | AN33: 48 | AP33: 753 | AR33: 231 | AS33: 124 | AT33: 68 | AV33: 703 | AX33: 188 | AY33: 111 | AZ33: 31 | BB33: 685 | BD33: 107 | BE33: 106 | BF33: 50 | BH33: 326 | BJ33: 42 | BK33: 142 | BL33: 52
J34: 31 | K34: 505A | M34: 192 | N34: 44 | O34: 94 | Q34: =ABS(M34-$B$11)+ABS(N34-$D$11)+ABS(O34-$F$11) -> 330 | X34: 505A | Z34: 192 | AA34: 44 | AB34: 94 | AD34: 2652 | AF34: 210 | AG34: 146 | AH34: 146 | AJ34: 346 | AL34: 173 | AM34: 27 | AN34: 46 | AP34: 754 | AR34: 225 | AS34: 81 | AT34: 46 | AV34: 704 | AX34: 163 | AY34: 94 | AZ34: 25 | BB34: 686 | BD34: 67 | BE34: 72 | BF34: 40 | BH34: 327 | BJ34: 49 | BK34: 120 | BL34: 64
J35: 32 | K35: 506 | M35: 184 | N35: 26 | O35: 75 | Q35: =ABS(M35-$B$11)+ABS(N35-$D$11)+ABS(O35-$F$11) -> 285 | X35: 506 | Z35: 184 | AA35: 26 | AB35: 75 | AD35: 653 | AF35: 188 | AG35: 113 | AH35: 107 | AJ35: 798 | AL35: 205 | AM35: 28 | AN35: 54 | AP35: 757 | AR35: 206 | AS35: 48 | AT35: 39 | AV35: 705A | AX35: 140 | AY35: 90 | AZ35: 39 | BB35: 687 | BD35: 64 | BE35: 60 | BF35: 35 | BH35: 328 | BJ35: 21 | BK35: 105 | BL35: 56
J36: 33 | K36: 2480 | M36: 238 | N36: 182 | O36: 207 | Q36: =ABS(M36-$B$11)+ABS(N36-$D$11)+ABS(O36-$F$11) -> 627 | X36: 2480 | Z36: 238 | AA36: 182 | AB36: 207 | AD36: 654 | AF36: 157 | AG36: 67 | AH36: 67 | AJ36: 800 | AL36: 191 | AM36: 25 | AN36: 61 | AP36: 758 | AR36: 200 | AS36: 68 | AT36: 45 | AV36: 706 | AX36: 130 | AY36: 76 | AZ36: 42 | BB36: 921 | BD36: 176 | BE36: 193 | BF36: 139 | BH36: 329 | BJ36: 7 | BK36: 89 | BL36: 49
J37: 34 | K37: 481A | M37: 223 | N37: 144 | O37: 176 | Q37: =ABS(M37-$B$11)+ABS(N37-$D$11)+ABS(O37-$F$11) -> 543 | X37: 481A | Z37: 223 | AA37: 144 | AB37: 176 | AD37: 655 | AF37: 140 | AG37: 54 | AH37: 53 | AJ37: 851 | AL37: 234 | AM37: 181 | AN37: 165 | BB37: 922 | BD37: 164 | BE37: 183 | BF37: 128 | BH37: 269 | BJ37: 200 | BK37: 219 | BL37: 129
J38: 35 | K38: 482 | M38: 208 | N38: 116 | O38: 153 | Q38: =ABS(M38-$B$11)+ABS(N38-$D$11)+ABS(O38-$F$11) -> 477 | X38: 482 | Z38: 208 | AA38: 116 | AB38: 153 | AD38: 656 | AF38: 105 | AG38: 24 | AH38: 41 | AJ38: 852 | AL38: 229 | AM38: 153 | AN38: 139 | BB38: 923 | BD38: 133 | BE38: 152 | BF38: 97 | BH38: 270 | BJ38: 182 | BK38: 205 | BL38: 53
J39: 36 | K39: 483 | M39: 188 | N39: 83 | O39: 140 | Q39: =ABS(M39-$B$11)+ABS(N39-$D$11)+ABS(O39-$F$11) -> 411 | X39: 483 | Z39: 188 | AA39: 83 | AB39: 140 | AJ39: 853 | AL39: 226 | AM39: 134 | AN39: 111 | BB39: 924 | BD39: 93 | BE39: 123 | BF39: 61 | BH39: 271 | BJ39: 101 | BK39: 170 | BL39: 61
J40: 37 | K40: 484A | M40: 158 | N40: 68 | O40: 129 | Q40: =ABS(M40-$B$11)+ABS(N40-$D$11)+ABS(O40-$F$11) -> 355 | X40: 484A | Z40: 158 | AA40: 68 | AB40: 129 | AJ40: 854 | AL40: 202 | AM40: 85 | AN40: 78 | BB40: 2924 | BD40: 76 | BE40: 82 | BF40: 48 | BH40: 272 | BJ40: 76 | BK40: 157 | BL40: 62
J41: 38 | K41: 485A | M41: 143 | N41: 46 | O41: 115 | Q41: =ABS(M41-$B$11)+ABS(N41-$D$11)+ABS(O41-$F$11) -> 304 | X41: 485A | Z41: 143 | AA41: 46 | AB41: 115 | AJ41: 855 | AL41: 183 | AM41: 57 | AN41: 60 | BB41: 925 | BD41: 68 | BE41: 74 | BF41: 38 | BH41: 273 | BJ41: 26 | BK41: 151 | BL41: 59
J42: 39 | K42: 486 | M42: 121 | N42: 40 | O42: 107 | Q42: =ABS(M42-$B$11)+ABS(N42-$D$11)+ABS(O42-$F$11) -> 268 | X42: 486 | Z42: 121 | AA42: 40 | AB42: 107 | AJ42: 857 | AL42: 167 | AM42: 41 | AN42: 53 | BB42: 926 | BD42: 51 | BE42: 61 | BF42: 27 | BH42: 274 | BJ42: 25 | BK42: 137 | BL42: 65
J43: 40 | K43: 220 | M43: 246 | N43: 212 | O43: 203 | Q43: =ABS(M43-$B$11)+ABS(N43-$D$11)+ABS(O43-$F$11) -> 661 | AJ43: 858 | AL43: 143 | AM43: 30 | AN43: 48 | BB43: 927 | BD43: 47 | BE43: 58 | BF43: 50 | BH43: 275 | BJ43: 18 | BK43: 118 | BL43: 64
J44: 41 | K44: 221 | M44: 232 | N44: 181 | O44: 186 | Q44: =ABS(M44-$B$11)+ABS(N44-$D$11)+ABS(O44-$F$11) -> 599 | BH44: 276 | BJ44: 12 | BK44: 117 | BL44: 60
J45: 42 | K45: 2221 | M45: 222 | N45: 165 | O45: 171 | Q45: =ABS(M45-$B$11)+ABS(N45-$D$11)+ABS(O45-$F$11) -> 558 | BH45: 4905 | BJ45: 8 | BK45: 106 | BL45: 59
J46: 43 | K46: 222 | M46: 211 | N46: 131 | O46: 144 | Q46: =ABS(M46-$B$11)+ABS(N46-$D$11)+ABS(O46-$F$11) -> 486
J47: 44 | K47: 2222 | M47: 196 | N47: 108 | O47: 124 | Q47: =ABS(M47-$B$11)+ABS(N47-$D$11)+ABS(O47-$F$11) -> 428
J48: 45 | K48: 223 | M48: 163 | N48: 77 | O48: 114 | Q48: =ABS(M48-$B$11)+ABS(N48-$D$11)+ABS(O48-$F$11) -> 354 | X48: 番号 | Y48: 色 | Z48: R | AA48: G | AB48: B | AD48: 番号 | AE48: 色 | AF48: R | AG48: G | AH48: B | AJ48: 番号 | AK48: 色 | AL48: R | AM48: G | AN48: B | AP48: 番号 | AQ48: 色 | AR48: R | AS48: G | AT48: B | AV48: 番号 | AW48: 色 | AX48: R | AY48: G | AZ48: B | BB48: 番号 | BC48: 色 | BD48: R | BE48: G | BF48: B | BH48: 番号 | BI48: 色 | BJ48: R | BK48: G | BL48: B
J49: 46 | K49: 2223 | M49: 160 | N49: 59 | O49: 89 | Q49: =ABS(M49-$B$11)+ABS(N49-$D$11)+ABS(O49-$F$11) -> 308 | X49: 316A | Z49: 165 | AA49: 191 | AB49: 152 | AD49: 980 | AF49: 166 | AG49: 182 | AH49: 171 | AJ49: 410A | AL49: 209 | AM49: 232 | AN49: 240 | AP49: 171A | AR49: 221 | AS49: 220 | AT49: 226 | AV49: 261 | AX49: 202 | AY49: 173 | AZ49: 193 | BB49: 1000 | BD49: 246 | BE49: 223 | BF49: 179 | BH49: 151 | BJ49: 224 | BK49: 220 | BL49: 211
J50: 47 | K50: 224 | M50: 124 | N50: 46 | O50: 85 | Q50: =ABS(M50-$B$11)+ABS(N50-$D$11)+ABS(O50-$F$11) -> 255 | X50: 317 | Z50: 148 | AA50: 184 | AB50: 148 | AD50: 981A | AF50: 132 | AG50: 158 | AH50: 149 | AJ50: 411 | AL50: 172 | AM50: 213 | AN50: 235 | AP50: 172A | AR50: 199 | AS50: 191 | AT50: 204 | AV50: 262 | AX50: 188 | AY50: 158 | AZ50: 184 | BB50: 305 | BD50: 233 | BE50: 211 | BF50: 164 | BH50: 890 | BJ50: 182 | BK50: 184 | BL50: 170
J51: 48 | K51: 2224 | M51: 109 | N51: 42 | O51: 75 | Q51: =ABS(M51-$B$11)+ABS(N51-$D$11)+ABS(O51-$F$11) -> 226 | X51: 2317 | Z51: 134 | AA51: 174 | AB51: 140 | AD51: 2981 | AF51: 111 | AG51: 137 | AH51: 128 | AJ51: 412 | AL51: 102 | AM51: 191 | AN51: 223 | AP51: 2172 | AR51: 165 | AS51: 155 | AT51: 180 | AV51: 2262 | AX51: 165 | AY51: 128 | AZ51: 161 | BB51: 306 | BD51: 226 | BE51: 196 | BF51: 136 | BH51: 891 | BJ51: 162 | BK51: 165 | BL51: 144
J52: 49 | K52: 225 | M52: 99 | N52: 39 | O52: 65 | Q52: =ABS(M52-$B$11)+ABS(N52-$D$11)+ABS(O52-$F$11) -> 203 | X52: 318 | Z52: 71 | AA52: 123 | AB52: 87 | AD52: 982 | AF52: 50 | AG52: 110 | AH52: 108 | AJ52: 2412 | AL52: 38 | AM52: 169 | AN52: 211 | AP52: 173 | AR52: 135 | AS52: 117 | AT52: 167 | AV52: 263 | AX52: 122 | AY52: 79 | AZ52: 148 | BB52: 307 | BD52: 221 | BE52: 185 | BF52: 127 | BH52: 892 | BJ52: 134 | BK52: 135 | BL52: 129
J53: 50 | K53: 226 | M53: 71 | N53: 38 | O53: 59 | Q53: =ABS(M53-$B$11)+ABS(N53-$D$11)+ABS(O53-$F$11) -> 168 | X53: 319 | Z53: 23 | AA53: 101 | AB53: 62 | AD53: 983 | AF53: 21 | AG53: 91 | AH53: 93 | AJ53: 413 | AL53: 27 | AM53: 140 | AN53: 198 | AP53: 174 | AR53: 114 | AS53: 96 | AT53: 156 | AV53: 264 | AX53: 132 | AY53: 77 | AZ53: 132 | BB53: 2307 | BD53: 203 | BE53: 154 | BF53: 87 | BH53: 893 | BJ53: 96 | BK53: 107 | BL53: 99
J54: 51 | K54: 811 | M54: 249 | N54: 198 | O54: 195 | Q54: =ABS(M54-$B$11)+ABS(N54-$D$11)+ABS(O54-$F$11) -> 642 | X54: 2319 | Z54: 14 | AA54: 90 | AB54: 54 | AD54: 984 | AF54: 13 | AG54: 78 | AH54: 80 | AJ54: 414A | AL54: 17 | AM54: 133 | AN54: 194 | AP54: 175 | AR54: 99 | AS54: 83 | AT54: 148 | AV54: 265 | AX54: 119 | AY54: 71 | AZ54: 123 | BB54: 308 | BD54: 169 | BE54: 104 | BF54: 72 | BH54: 894 | BJ54: 75 | BK54: 88 | BL54: 70
J55: 52 | K55: 812 | M55: 234 | N55: 159 | O55: 164 | Q55: =ABS(M55-$B$11)+ABS(N55-$D$11)+ABS(O55-$F$11) -> 557 | X55: 320 | Z55: 6 | AA55: 86 | AB55: 49 | AD55: 371 | AF55: 126 | AG55: 196 | AH55: 194 | AJ55: 415A | AL55: 5 | AM55: 105 | AN55: 167 | AP55: 176 | AR55: 86 | AS55: 69 | AT55: 137 | AV55: 266 | AX55: 84 | AY55: 52 | AZ55: 99 | BB55: 309 | BD55: 153 | BE55: 94 | BF55: 50 | BH55: 895 | BJ55: 38 | BK55: 58 | BL55: 57
J56: 53 | K56: 813 | M56: 213 | N56: 111 | O56: 125 | Q56: =ABS(M56-$B$11)+ABS(N56-$D$11)+ABS(O56-$F$11) -> 449 | X56: 2015 | Z56: 59 | AA56: 98 | AB56: 71 | AD56: 372 | AF56: 94 | AG56: 181 | AH56: 188 | AJ56: 2021 | AL56: 155 | AM56: 205 | AN56: 214 | AP56: 551 | AR56: 200 | AS56: 193 | AT56: 201 | AV56: 281 | AX56: 215 | AY56: 199 | AZ56: 199 | BB56: 2310 | BD56: 107 | BE56: 56 | BF56: 29 | BH56: 2151 | BJ56: 179 | BK56: 176 | BL56: 157
J57: 54 | K57: 814 | M57: 178 | N57: 68 | O57: 95 | Q57: =ABS(M57-$B$11)+ABS(N57-$D$11)+ABS(O57-$F$11) -> 341 | X57: 2016 | Z57: 20 | AA57: 60 | AB57: 52 | AD57: 373 | AF57: 79 | AG57: 167 | AH57: 171 | AJ57: 2022 | AL57: 23 | AM57: 173 | AN57: 197 | AP57: 552 | AR57: 186 | AS57: 178 | AT57: 189 | AV57: 2281 | AX57: 196 | AY57: 172 | AZ57: 186 | BB57: 310 | BD57: 117 | BE57: 63 | BF57: 51 | BH57: 152A | BJ57: 162 | BK57: 164 | BL57: 150
J58: 55 | K58: 815 | M58: 156 | N58: 52 | O58: 87 | Q58: =ABS(M58-$B$11)+ABS(N58-$D$11)+ABS(O58-$F$11) -> 295 | X58: 533A | Z58: 156 | AA58: 191 | AB58: 159 | AD58: 374 | AF58: 53 | AG58: 158 | AH58: 161 | AJ58: 2023 | AL58: 18 | AM58: 152 | AN58: 190 | AP58: 553 | AR58: 174 | AS58: 165 | AT58: 184 | AV58: 282 | AX58: 169 | AY58: 123 | AZ58: 169 | BB58: 311 | BD58: 104 | BE58: 66 | BF58: 55 | BH58: 153A | BJ58: 122 | BK58: 127 | BL58: 121
J59: 56 | K59: 816A | M59: 129 | N59: 33 | O59: 71 | Q59: =ABS(M59-$B$11)+ABS(N59-$D$11)+ABS(O59-$F$11) -> 233 | X59: 534A | Z59: 102 | AA59: 157 | AB59: 128 | AD59: 375 | AF59: 31 | AG59: 123 | AH59: 138 | AJ59: 2024 | AL59: 15 | AM59: 138 | AN59: 182 | AP59: 554 | AR59: 140 | AS59: 124 | AT59: 161 | AV59: 283 | AX59: 116 | AY59: 75 | AZ59: 145 | BB59: 3311 | BD59: 81 | BE59: 52 | BF59: 48 | BH59: 154 | BJ59: 89 | BK59: 100 | BL59: 92
J60: 57 | K60: 431 | M60: 221 | N60: 163 | O60: 162 | Q60: =ABS(M60-$B$11)+ABS(N60-$D$11)+ABS(O60-$F$11) -> 546 | X60: 535 | Z60: 89 | AA60: 138 | AB60: 108 | AD60: 376 | AF60: 12 | AG60: 102 | AH60: 113 | AJ60: 2025 | AL60: 54 | AM60: 164 | AN60: 201 | AP60: 555 | AR60: 77 | AS60: 75 | AT60: 122 | AV60: 284 | AX60: 108 | AY60: 67 | AZ60: 137 | BB60: 4311 | BD60: 57 | BE60: 38 | BF60: 44 | BH60: 2154 | BJ60: 76 | BK60: 87 | BL60: 83
J61: 58 | K61: 432A | M61: 192 | N61: 123 | O61: 142 | Q61: =ABS(M61-$B$11)+ABS(N61-$D$11)+ABS(O61-$F$11) -> 457 | X61: 2535 | Z61: 60 | AA61: 120 | AB61: 86 | AD61: 211 | AF61: 207 | AG61: 227 | AH61: 226 | AJ61: 2026 | AL61: 23 | AM61: 152 | AN61: 184 | AP61: 556 | AR61: 59 | AS61: 63 | AT61: 100 | AV61: 285 | AX61: 99 | AY61: 58 | AZ61: 128 | BB61: 312 | BD61: 42 | BE61: 32 | BF61: 30 | BH61: 155 | BJ61: 61 | BK61: 72 | BL61: 68
J62: 59 | K62: 433 | M62: 163 | N62: 86 | O62: 102 | Q62: =ABS(M62-$B$11)+ABS(N62-$D$11)+ABS(O62-$F$11) -> 351 | X62: 536A | Z62: 28 | AA62: 96 | AB62: 73 | AD62: 2251 | AF62: 143 | AG62: 193 | AH62: 192 | AJ62: 2027 | AL62: 11 | AM62: 106 | AN62: 164 | AP62: 557 | AR62: 24 | AS62: 39 | AT62: 72 | AV62: 286 | AX62: 91 | AY62: 51 | AZ62: 111 | BB62: 2036 | BD62: 181 | BE62: 165 | BF62: 142 | BH62: 156 | BJ62: 25 | BK62: 44 | BL62: 48
J63: 60 | K63: 434 | M63: 139 | N63: 75 | O63: 91 | Q63: =ABS(M63-$B$11)+ABS(N63-$D$11)+ABS(O63-$F$11) -> 305 | X63: 2536A | Z63: 10 | AA63: 81 | AB63: 67 | AD63: 252 | AF63: 113 | AG63: 174 | AH63: 179 | AJ63: 520 | AL63: 218 | AM63: 228 | AN63: 230 | AP63: 2028 | AR63: 97 | AS63: 95 | AT63: 106 | AV63: 287A | AX63: 87 | AY63: 48 | AZ63: 101 | BB63: 2037 | BD63: 135 | BE63: 115 | BF63: 90 | BH63: 472 | BJ63: 190 | BK63: 186 | BL63: 177
J64: 61 | K64: 435 | M64: 111 | N64: 49 | O64: 70 | Q64: =ABS(M64-$B$11)+ABS(N64-$D$11)+ABS(O64-$F$11) -> 230 | X64: 537 | Z64: 8 | AA64: 79 | AB64: 61 | AD64: 253 | AF64: 54 | AG64: 149 | AH64: 167 | AJ64: 521A | AL64: 189 | AM64: 219 | AN64: 219 | AP64: 2029 | AR64: 61 | AS64: 61 | AT64: 87 | AV64: 380 | AX64: 204 | AY64: 182 | AZ64: 159 | BB64: 2038 | BD64: 79 | BE64: 63 | BF64: 48 | BH64: 473 | BJ64: 179 | BK64: 175 | BL64: 163
J65: 62 | K65: 437 | M65: 91 | N65: 28 | O65: 55 | Q65: =ABS(M65-$B$11)+ABS(N65-$D$11)+ABS(O65-$F$11) -> 174 | X65: 538 | Z65: 3 | AA65: 64 | AB65: 59 | AD65: 2253 | AF65: 38 | AG65: 126 | AH65: 162 | AJ65: 522 | AL65: 163 | AM65: 201 | AN65: 214 | AP65: 2030 | AR65: 28 | AS65: 37 | AT65: 44 | AV65: 382 | AX65: 189 | AY65: 158 | AZ65: 129 | BB65: 2039 | BD65: 109 | BE65: 89 | BF65: 56 | BH65: 474 | BJ65: 152 | BK65: 143 | BL65: 136
J66: 63 | K66: 232 | M66: 221 | N66: 165 | O66: 168 | Q66: =ABS(M66-$B$11)+ABS(N66-$D$11)+ABS(O66-$F$11) -> 554 | X66: 333 | Z66: 187 | AA66: 221 | AB66: 196 | AD66: 254 | AF66: 14 | AG66: 108 | AH66: 134 | AJ66: 523 | AL66: 140 | AM66: 181 | AN66: 209 | AP66: 761 | AR66: 189 | AS66: 179 | AT66: 178 | AV66: 383 | AX66: 163 | AY66: 121 | AZ66: 97 | BB66: 2040 | BD66: 86 | BE66: 65 | BF66: 38 | BH66: 475 | BJ66: 117 | BK66: 108 | BL66: 101
J67: 64 | K67: 233 | M67: 212 | N67: 158 | O67: 156 | Q67: =ABS(M67-$B$11)+ABS(N67-$D$11)+ABS(O67-$F$11) -> 526 | X67: 334 | Z67: 100 | AA67: 186 | AB67: 137 | AD67: 2017 | AF67: 114 | AG67: 162 | AH67: 172 | AJ67: 2212 | AL67: 107 | AM67: 162 | AN67: 192 | AP67: 762 | AR67: 148 | AS67: 142 | AT67: 144 | AV67: 384 | AX67: 135 | AY67: 86 | AZ67: 71 | BB67: 364 | BD67: 235 | BE67: 228 | BF67: 209 | BH67: 476 | BJ67: 70 | BK67: 70 | BL67: 70
J68: 65 | K68: 234 | M68: 185 | N68: 138 | O68: 144 | Q68: =ABS(M68-$B$11)+ABS(N68-$D$11)+ABS(O68-$F$11) -> 467 | X68: 335 | Z68: 41 | AA68: 150 | AB68: 95 | AD68: 2018 | AF68: 90 | AG68: 137 | AH68: 147 | AJ68: 214 | AL68: 73 | AM68: 135 | AN68: 184 | AP68: 2762 | AR68: 129 | AS68: 111 | AT68: 123 | AV68: 386 | AX68: 116 | AY68: 73 | AZ68: 57 | BB68: 365 | BD68: 221 | BE68: 216 | BF68: 194 | BH68: 477 | BJ68: 52 | BK68: 48 | BL68: 49
J69: 66 | K69: 235 | M69: 145 | N69: 97 | O69: 109 | Q69: =ABS(M69-$B$11)+ABS(N69-$D$11)+ABS(O69-$F$11) -> 351 | X69: 336 | Z69: 20 | AA69: 133 | AB69: 81 | AD69: 2019 | AF69: 22 | AG69: 99 | AH69: 109 | AJ69: 525 | AL69: 67 | AM69: 112 | AN69: 167 | AP69: 763 | AR69: 111 | AS69: 93 | AT69: 105 | AV69: 423 | AX69: 219 | AY69: 188 | AZ69: 160 | BB69: 366 | BD69: 206 | BE69: 198 | BF69: 152 | BH69: 478 | BJ69: 32 | BK69: 36 | BL69: 45
J70: 67 | K70: 236 | M70: 105 | N70: 64 | O70: 68 | Q70: =ABS(M70-$B$11)+ABS(N70-$D$11)+ABS(O70-$F$11) -> 237 | X70: 337 | Z70: 12 | AA70: 122 | AB70: 75 | AD70: 2020 | AF70: 13 | AG70: 51 | AH70: 64 | AJ70: 526 | AL70: 56 | AM70: 96 | AN70: 158 | AP70: 764 | AR70: 97 | AS70: 78 | AT70: 100 | AV70: 424 | AX70: 215 | AY70: 170 | AZ70: 137 | BB70: 367 | BD70: 160 | BE70: 145 | BF70: 106 | BH70: 600 | BJ70: 5 | BK70: 5 | BL70: 5
J71: 68 | K71: 3661 | M71: 236 | N71: 202 | O71: 192 | Q71: =ABS(M71-$B$11)+ABS(N71-$D$11)+ABS(O71-$F$11) -> 630 | X71: 338 | Z71: 5 | AA71: 100 | AB71: 56 | AD71: 730 | AF71: 166 | AG71: 199 | AH71: 204 | AJ71: 2214 | AL71: 18 | AM71: 81 | AN71: 161 | AP71: 765 | AR71: 77 | AS71: 64 | AT71: 84 | AV71: 2424 | AX71: 189 | AY71: 137 | AZ71: 90 | BB71: 368 | BD71: 121 | BE71: 116 | BF71: 86 | BH71: 601 | BJ71: 13 | BK71: 33 | BL71: 32
J72: 69 | K72: 652 | M72: 223 | N72: 165 | O72: 161 | Q72: =ABS(M72-$B$11)+ABS(N72-$D$11)+ABS(O72-$F$11) -> 549 | X72: 842 | Z72: 117 | AA72: 193 | AB72: 167 | AD72: 731 | AF72: 152 | AG72: 180 | AH72: 191 | AJ72: 216 | AL72: 14 | AM72: 72 | AN72: 136 | AP72: 766 | AR72: 45 | AS72: 37 | AT72: 50 | AV72: 425 | AX72: 184 | AY72: 119 | AZ72: 87 | BB72: 369 | BD72: 93 | BE72: 80 | BF72: 61 | BH72: 602 | BJ72: 1 | BK72: 13 | BL72: 25
J73: 70 | K73: 2652 | M73: 210 | N73: 146 | O73: 146 | Q73: =ABS(M73-$B$11)+ABS(N73-$D$11)+ABS(O73-$F$11) -> 502 | X73: 843 | Z73: 86 | AA73: 170 | AB73: 147 | AD73: 732 | AF73: 122 | AG73: 153 | AH73: 173 | AJ73: 218 | AL73: 11 | AM73: 65 | AN73: 127 | AP73: 2031 | AR73: 178 | AS73: 132 | AT73: 160 | AV73: 426 | AX73: 137 | AY73: 75 | AZ73: 52 | BB73: 370 | BD73: 66 | BE73: 51 | BF73: 32 | BH73: 603 | BJ73: 10 | BK73: 10 | BL73: 10
J74: 71 | K74: 653 | M74: 188 | N74: 113 | O74: 107 | Q74: =ABS(M74-$B$11)+ABS(N74-$D$11)+ABS(O74-$F$11) -> 408 | X74: 844 | Z74: 35 | AA74: 156 | AB74: 121 | AD74: 733 | AF74: 103 | AG74: 140 | AH74: 158 | AJ74: 4792 | AL74: 9 | AM74: 59 | AN74: 122 | AP74: 2032 | AR74: 141 | AS74: 79 | AT74: 116 | AV74: 126A | AX74: 226 | AY74: 173 | AZ74: 131 | BB74: 711 | BD74: 213 | BE74: 208 | BF74: 186 | BH74: 2500 | BJ74: 245 | BK74: 245 | BL74: 245
J75: 72 | K75: 654 | M75: 157 | N75: 67 | O75: 67 | Q75: =ABS(M75-$B$11)+ABS(N75-$D$11)+ABS(O75-$F$11) -> 291 | X75: 845 | Z75: 17 | AA75: 127 | AB75: 90 | AD75: 734 | AF75: 42 | AG75: 109 | AH75: 126 | AJ75: 662 | AL75: 141 | AM75: 160 | AN75: 190 | AP75: 2033 | AR75: 100 | AS75: 45 | AT75: 74 | AV75: 127 | AX75: 216 | AY75: 153 | AZ75: 110 | BB75: 712 | BD75: 196 | BE75: 191 | BF75: 169 | BH75: 500 | BJ75: 247 | BK75: 248 | BL75: 242
J76: 73 | K76: 655 | M76: 140 | N76: 54 | O76: 53 | Q76: =ABS(M76-$B$11)+ABS(N76-$D$11)+ABS(O76-$F$11) -> 247 | X76: 846 | Z76: 10 | AA76: 106 | AB76: 68 | AD76: 735 | AF76: 28 | AG76: 70 | AH76: 86 | AJ76: 2662 | AL76: 105 | AM76: 134 | AN76: 174 | AP76: 2034 | AR76: 198 | AS76: 177 | AT76: 184 | AV76: 128 | AX76: 191 | AY76: 113 | AZ76: 65 | BB76: 713 | BD76: 188 | BE76: 176 | BF76: 152 | BH76: 100 | BJ76: 250 | BK76: 251 | BL76: 245
J77: 74 | K77: 656 | M77: 105 | N77: 24 | O77: 41 | Q77: =ABS(M77-$B$11)+ABS(N77-$D$11)+ABS(O77-$F$11) -> 170 | X77: 896 | Z77: 133 | AA77: 203 | AB77: 195 | AD77: 162A | AF77: 158 | AG77: 202 | AH77: 213 | AJ77: 663 | AL77: 85 | AM77: 117 | AN77: 166 | AP77: 2035 | AR77: 98 | AS77: 70 | AT77: 85 | AV77: 129 | AX77: 171 | AY77: 86 | AZ77: 55 | BB77: 714 | BD77: 160 | BE77: 149 | BF77: 121 | BH77: 110 | BJ77: 243 | BK77: 245 | BL77: 231
J78: 75 | K78: 101 | M78: 255 | N78: 235 | O78: 216 | Q78: =ABS(M78-$B$11)+ABS(N78-$D$11)+ABS(O78-$F$11) -> 706 | X78: 897 | Z78: 102 | AA78: 189 | AB78: 181 | AD78: 163 | AF78: 147 | AG78: 184 | AH78: 202 | AJ78: 664A | AL78: 58 | AM78: 86 | AN78: 149 | AV78: 2129 | AX78: 156 | AY78: 75 | AZ78: 48 | BB78: 715 | BD78: 109 | BE78: 104 | BF78: 85
J79: 76 | K79: 102 | M79: 244 | N79: 207 | O79: 198 | Q79: =ABS(M79-$B$11)+ABS(N79-$D$11)+ABS(O79-$F$11) -> 649 | X79: 898 | Z79: 58 | AA79: 174 | AB79: 161 | AD79: 164 | AF79: 77 | AG79: 133 | AH79: 160 | AJ79: 2664 | AL79: 48 | AM79: 78 | AN79: 138 | AV79: 130 | AX79: 119 | AY79: 46 | AZ79: 39 | BB79: 716 | BD79: 93 | BE79: 85 | BF79: 66
J80: 77 | K80: 103A | M80: 233 | N80: 194 | O80: 187 | Q80: =ABS(M80-$B$11)+ABS(N80-$D$11)+ABS(O80-$F$11) -> 614 | X80: 899 | Z80: 31 | AA80: 165 | AB80: 141 | AD80: 165A | AF80: 34 | AG80: 111 | AH80: 155 | AJ80: 665 | AL80: 37 | AM80: 62 | AN80: 118 | AV80: 131 | AX80: 100 | AY80: 39 | AZ80: 36 | BB80: 717 | BD80: 71 | BE80: 64 | BF80: 46
J81: 78 | K81: 104 | M81: 228 | N81: 164 | O81: 162 | Q81: =ABS(M81-$B$11)+ABS(N81-$D$11)+ABS(O81-$F$11) -> 554 | X81: 900 | Z81: 19 | AA81: 130 | AB81: 113 | AD81: 166 | AF81: 13 | AG81: 95 | AH81: 143 | AJ81: 667A | AL81: 31 | AM81: 48 | AN81: 92 | AV81: 2311 | AX81: 76 | AY81: 37 | AZ81: 30 | BB81: 718 | BD81: 62 | BE81: 57 | BF81: 27
J82: 79 | K82: 105 | M82: 221 | N82: 134 | O82: 142 | Q82: =ABS(M82-$B$11)+ABS(N82-$D$11)+ABS(O82-$F$11) -> 497 | X82: 902 | Z82: 5 | AA82: 116 | AB82: 100 | AD82: 167 | AF82: 3 | AG82: 84 | AH82: 127 | AJ82: 668 | AL82: 23 | AM82: 42 | AN82: 72 | BB82: 2041 | BD82: 62 | BE82: 69 | BF82: 53
J83: 80 | K83: 1105 | M83: 204 | N83: 81 | O83: 101 | Q83: =ABS(M83-$B$11)+ABS(N83-$D$11)+ABS(O83-$F$11) -> 386 | X83: 2211 | Z83: 203 | AA83: 228 | AB83: 225 | AD83: 2167 | AF83: 22 | AG83: 59 | AH83: 103 | AJ83: 669A | AL83: 18 | AM83: 34 | AN83: 59
J84: 81 | K84: 2105 | M84: 199 | N84: 82 | O84: 91 | Q84: =ABS(M84-$B$11)+ABS(N84-$D$11)+ABS(O84-$F$11) -> 372 | X84: 561 | Z84: 174 | AA84: 215 | AB84: 201 | AD84: 168 | AF84: 10 | AG84: 53 | AH84: 88
J85: 82 | K85: 106 | M85: 195 | N85: 56 | O85: 79 | Q85: =ABS(M85-$B$11)+ABS(N85-$D$11)+ABS(O85-$F$11) -> 330 | X85: 562 | Z85: 145 | AA85: 200 | AB85: 197 | AD85: 169 | AF85: 8 | AG85: 43 | AH85: 71
J86: 83 | K86: 107 | M86: 177 | N86: 39 | O86: 73 | Q86: =ABS(M86-$B$11)+ABS(N86-$D$11)+ABS(O86-$F$11) -> 289 | X86: 563 | Z86: 81 | AA86: 186 | AB86: 181
J87: 84 | K87: 2242 | M87: 163 | N87: 29 | O87: 64 | Q87: =ABS(M87-$B$11)+ABS(N87-$D$11)+ABS(O87-$F$11) -> 256 | X87: 2563 | Z87: 72 | AA87: 165 | AB87: 170
J88: 85 | K88: 108 | M88: 151 | N88: 28 | O88: 48 | Q88: =ABS(M88-$B$11)+ABS(N88-$D$11)+ABS(O88-$F$11) -> 227 | X88: 564 | Z88: 33 | AA88: 151 | AB88: 137
J89: 86 | K89: 4300 | M89: 132 | N89: 31 | O89: 71 | Q89: =ABS(M89-$B$11)+ABS(N89-$D$11)+ABS(O89-$F$11) -> 234 | X89: 566 | Z89: 18 | AA89: 124 | AB89: 112
J90: 87 | K90: 111 | M90: 248 | N90: 210 | O90: 209 | Q90: =ABS(M90-$B$11)+ABS(N90-$D$11)+ABS(O90-$F$11) -> 667
J91: 88 | K91: 832 | M91: 240 | N91: 201 | O91: 194 | Q91: =ABS(M91-$B$11)+ABS(N91-$D$11)+ABS(O91-$F$11) -> 635
J92: 89 | K92: 833 | M92: 239 | N92: 171 | O92: 172 | Q92: =ABS(M92-$B$11)+ABS(N92-$D$11)+ABS(O92-$F$11) -> 582
J93: 90 | K93: 834A | M93: 216 | N93: 120 | O93: 121 | Q93: =ABS(M93-$B$11)+ABS(N93-$D$11)+ABS(O93-$F$11) -> 457
J94: 91 | K94: 2835 | M94: 210 | N94: 72 | O94: 95 | Q94: =ABS(M94-$B$11)+ABS(N94-$D$11)+ABS(O94-$F$11) -> 377
J95: 92 | K95: 206 | M95: 209 | N95: 38 | O95: 72 | Q95: =ABS(M95-$B$11)+ABS(N95-$D$11)+ABS(O95-$F$11) -> 319
J96: 93 | K96: 836 | M96: 199 | N96: 47 | O96: 60 | Q96: =ABS(M96-$B$11)+ABS(N96-$D$11)+ABS(O96-$F$11) -> 306
J97: 94 | K97: 838 | M97: 202 | N97: 34 | O97: 57 | Q97: =ABS(M97-$B$11)+ABS(N97-$D$11)+ABS(O97-$F$11) -> 293
J98: 95 | K98: 2001 | M98: 207 | N98: 29 | O98: 107 | Q98: =ABS(M98-$B$11)+ABS(N98-$D$11)+ABS(O98-$F$11) -> 343
J99: 96 | K99: 2002 | M99: 165 | N99: 24 | O99: 100 | Q99: =ABS(M99-$B$11)+ABS(N99-$D$11)+ABS(O99-$F$11) -> 289
J100: 97 | K100: 2003 | M100: 122 | N100: 31 | O100: 98 | Q100: =ABS(M100-$B$11)+ABS(N100-$D$11)+ABS(O100-$F$11) -> 251
J101: 98 | K101: 341 | M101: 234 | N101: 191 | O101: 146 | Q101: =ABS(M101-$B$11)+ABS(N101-$D$11)+ABS(O101-$F$11) -> 571
J102: 99 | K102: 2341 | M102: 228 | N102: 146 | O102: 99 | Q102: =ABS(M102-$B$11)+ABS(N102-$D$11)+ABS(O102-$F$11) -> 473
J103: 100 | K103: 342 | M103: 226 | N103: 120 | O103: 96 | Q103: =ABS(M103-$B$11)+ABS(N103-$D$11)+ABS(O103-$F$11) -> 442
J104: 101 | K104: 343 | M104: 207 | N104: 62 | O104: 57 | Q104: =ABS(M104-$B$11)+ABS(N104-$D$11)+ABS(O104-$F$11) -> 326
J105: 102 | K105: 2343 | M105: 201 | N105: 51 | O105: 53 | Q105: =ABS(M105-$B$11)+ABS(N105-$D$11)+ABS(O105-$F$11) -> 305
J106: 103 | K106: 344 | M106: 189 | N106: 38 | O106: 45 | Q106: =ABS(M106-$B$11)+ABS(N106-$D$11)+ABS(O106-$F$11) -> 272
J107: 104 | K107: 345 | M107: 183 | N107: 27 | O107: 48 | Q107: =ABS(M107-$B$11)+ABS(N107-$D$11)+ABS(O107-$F$11) -> 258
J108: 105 | K108: 346 | M108: 173 | N108: 27 | O108: 46 | Q108: =ABS(M108-$B$11)+ABS(N108-$D$11)+ABS(O108-$F$11) -> 246
J109: 106 | K109: 798 | M109: 205 | N109: 28 | O109: 54 | Q109: =ABS(M109-$B$11)+ABS(N109-$D$11)+ABS(O109-$F$11) -> 287
J110: 107 | K110: 800 | M110: 191 | N110: 25 | O110: 61 | Q110: =ABS(M110-$B$11)+ABS(N110-$D$11)+ABS(O110-$F$11) -> 277
J111: 108 | K111: 851 | M111: 234 | N111: 181 | O111: 165 | Q111: =ABS(M111-$B$11)+ABS(N111-$D$11)+ABS(O111-$F$11) -> 580
J112: 109 | K112: 852 | M112: 229 | N112: 153 | O112: 139 | Q112: =ABS(M112-$B$11)+ABS(N112-$D$11)+ABS(O112-$F$11) -> 521
J113: 110 | K113: 853 | M113: 226 | N113: 134 | O113: 111 | Q113: =ABS(M113-$B$11)+ABS(N113-$D$11)+ABS(O113-$F$11) -> 471
J114: 111 | K114: 854 | M114: 202 | N114: 85 | O114: 78 | Q114: =ABS(M114-$B$11)+ABS(N114-$D$11)+ABS(O114-$F$11) -> 365
J115: 112 | K115: 855 | M115: 183 | N115: 57 | O115: 60 | Q115: =ABS(M115-$B$11)+ABS(N115-$D$11)+ABS(O115-$F$11) -> 300
J116: 113 | K116: 857 | M116: 167 | N116: 41 | O116: 53 | Q116: =ABS(M116-$B$11)+ABS(N116-$D$11)+ABS(O116-$F$11) -> 261
J117: 114 | K117: 858 | M117: 143 | N117: 30 | O117: 48 | Q117: =ABS(M117-$B$11)+ABS(N117-$D$11)+ABS(O117-$F$11) -> 221
J118: 115 | K118: 461 | M118: 221 | N118: 175 | O118: 149 | Q118: =ABS(M118-$B$11)+ABS(N118-$D$11)+ABS(O118-$F$11) -> 545
J119: 116 | K119: 462 | M119: 213 | N119: 154 | O119: 122 | Q119: =ABS(M119-$B$11)+ABS(N119-$D$11)+ABS(O119-$F$11) -> 489
J120: 117 | K120: 463 | M120: 194 | N120: 118 | O120: 95 | Q120: =ABS(M120-$B$11)+ABS(N120-$D$11)+ABS(O120-$F$11) -> 407
J121: 118 | K121: 464 | M121: 179 | N121: 90 | O121: 72 | Q121: =ABS(M121-$B$11)+ABS(N121-$D$11)+ABS(O121-$F$11) -> 341
J122: 119 | K122: 465 | M122: 161 | N122: 77 | O122: 67 | Q122: =ABS(M122-$B$11)+ABS(N122-$D$11)+ABS(O122-$F$11) -> 305
J123: 120 | K123: 466 | M123: 151 | N123: 58 | O123: 50 | Q123: =ABS(M123-$B$11)+ABS(N123-$D$11)+ABS(O123-$F$11) -> 259
J124: 121 | K124: 467 | M124: 138 | N124: 34 | O124: 43 | Q124: =ABS(M124-$B$11)+ABS(N124-$D$11)+ABS(O124-$F$11) -> 215
J125: 122 | K125: 185A | M125: 247 | N125: 189 | O125: 149 | Q125: =ABS(M125-$B$11)+ABS(N125-$D$11)+ABS(O125-$F$11) -> 585
J126: 123 | K126: 2185 | M126: 238 | N126: 174 | O126: 126 | Q126: =ABS(M126-$B$11)+ABS(N126-$D$11)+ABS(O126-$F$11) -> 538
J127: 124 | K127: 3185 | M127: 217 | N127: 137 | O127: 88 | Q127: =ABS(M127-$B$11)+ABS(N127-$D$11)+ABS(O127-$F$11) -> 442
J128: 125 | K128: 186 | M128: 194 | N128: 103 | O128: 48 | Q128: =ABS(M128-$B$11)+ABS(N128-$D$11)+ABS(O128-$F$11) -> 345
J129: 126 | K129: 2186 | M129: 186 | N129: 73 | O129: 59 | Q129: =ABS(M129-$B$11)+ABS(N129-$D$11)+ABS(O129-$F$11) -> 318
J130: 127 | K130: 187 | M130: 176 | N130: 51 | O130: 49 | Q130: =ABS(M130-$B$11)+ABS(N130-$D$11)+ABS(O130-$F$11) -> 276
J131: 128 | K131: 188 | M131: 162 | N131: 32 | O131: 40 | Q131: =ABS(M131-$B$11)+ABS(N131-$D$11)+ABS(O131-$F$11) -> 234
J132: 129 | K132: 402 | M132: 248 | N132: 187 | O132: 130 | Q132: =ABS(M132-$B$11)+ABS(N132-$D$11)+ABS(O132-$F$11) -> 565
J133: 130 | K133: 1402 | M133: 240 | N133: 163 | O133: 95 | Q133: =ABS(M133-$B$11)+ABS(N133-$D$11)+ABS(O133-$F$11) -> 498
J134: 131 | K134: 2402 | M134: 227 | N134: 134 | O134: 75 | Q134: =ABS(M134-$B$11)+ABS(N134-$D$11)+ABS(O134-$F$11) -> 436
J135: 132 | K135: 403 | M135: 224 | N135: 109 | O135: 64 | Q135: =ABS(M135-$B$11)+ABS(N135-$D$11)+ABS(O135-$F$11) -> 397
J136: 133 | K136: 404 | M136: 196 | N136: 80 | O136: 55 | Q136: =ABS(M136-$B$11)+ABS(N136-$D$11)+ABS(O136-$F$11) -> 331
J137: 134 | K137: 405 | M137: 186 | N137: 77 | O137: 48 | Q137: =ABS(M137-$B$11)+ABS(N137-$D$11)+ABS(O137-$F$11) -> 311
J138: 135 | K138: 406 | M138: 164 | N138: 45 | O138: 47 | Q138: =ABS(M138-$B$11)+ABS(N138-$D$11)+ABS(O138-$F$11) -> 256
J139: 136 | K139: 440 | M139: 240 | N139: 160 | O139: 133 | Q139: =ABS(M139-$B$11)+ABS(N139-$D$11)+ABS(O139-$F$11) -> 533
J140: 137 | K140: 441 | M140: 236 | N140: 139 | O140: 107 | Q140: =ABS(M140-$B$11)+ABS(N140-$D$11)+ABS(O140-$F$11) -> 482
J141: 138 | K141: 443 | M141: 226 | N141: 99 | O141: 67 | Q141: =ABS(M141-$B$11)+ABS(N141-$D$11)+ABS(O141-$F$11) -> 392
J142: 139 | K142: 444A | M142: 216 | N142: 65 | O142: 56 | Q142: =ABS(M142-$B$11)+ABS(N142-$D$11)+ABS(O142-$F$11) -> 337
J143: 140 | K143: 445A | M143: 210 | N143: 38 | O143: 52 | Q143: =ABS(M143-$B$11)+ABS(N143-$D$11)+ABS(O143-$F$11) -> 300
J144: 141 | K144: 340 | M144: 246 | N144: 216 | O144: 182 | Q144: =ABS(M144-$B$11)+ABS(N144-$D$11)+ABS(O144-$F$11) -> 644
J145: 142 | K145: 750A | M145: 239 | N145: 189 | O145: 154 | Q145: =ABS(M145-$B$11)+ABS(N145-$D$11)+ABS(O145-$F$11) -> 582
J146: 143 | K146: 752 | M146: 235 | N146: 158 | O146: 104 | Q146: =ABS(M146-$B$11)+ABS(N146-$D$11)+ABS(O146-$F$11) -> 497
J147: 144 | K147: 753 | M147: 231 | N147: 124 | O147: 68 | Q147: =ABS(M147-$B$11)+ABS(N147-$D$11)+ABS(O147-$F$11) -> 423
J148: 145 | K148: 754 | M148: 225 | N148: 81 | O148: 46 | Q148: =ABS(M148-$B$11)+ABS(N148-$D$11)+ABS(O148-$F$11) -> 352
J149: 146 | K149: 757 | M149: 206 | N149: 48 | O149: 39 | Q149: =ABS(M149-$B$11)+ABS(N149-$D$11)+ABS(O149-$F$11) -> 293
J150: 147 | K150: 758 | M150: 200 | N150: 68 | O150: 45 | Q150: =ABS(M150-$B$11)+ABS(N150-$D$11)+ABS(O150-$F$11) -> 313
J151: 148 | K151: 140 | M151: 246 | N151: 232 | O151: 183 | Q151: =ABS(M151-$B$11)+ABS(N151-$D$11)+ABS(O151-$F$11) -> 661
J152: 149 | K152: 141 | M152: 244 | N152: 225 | O152: 156 | Q152: =ABS(M152-$B$11)+ABS(N152-$D$11)+ABS(O152-$F$11) -> 625
J153: 150 | K153: 142 | M153: 248 | N153: 211 | O153: 120 | Q153: =ABS(M153-$B$11)+ABS(N153-$D$11)+ABS(O153-$F$11) -> 579
J154: 151 | K154: 143 | M154: 244 | N154: 187 | O154: 72 | Q154: =ABS(M154-$B$11)+ABS(N154-$D$11)+ABS(O154-$F$11) -> 503
J155: 152 | K155: 144A | M155: 237 | N155: 167 | O155: 37 | Q155: =ABS(M155-$B$11)+ABS(N155-$D$11)+ABS(O155-$F$11) -> 441
J156: 153 | K156: 145 | M156: 229 | N156: 136 | O156: 33 | Q156: =ABS(M156-$B$11)+ABS(N156-$D$11)+ABS(O156-$F$11) -> 398
J157: 154 | K157: 146 | M157: 222 | N157: 111 | O157: 29 | Q157: =ABS(M157-$B$11)+ABS(N157-$D$11)+ABS(O157-$F$11) -> 362
J158: 155 | K158: 147 | M158: 200 | N158: 78 | O158: 27 | Q158: =ABS(M158-$B$11)+ABS(N158-$D$11)+ABS(O158-$F$11) -> 305
J159: 156 | K159: 297 | M159: 245 | N159: 237 | O159: 126 | Q159: =ABS(M159-$B$11)+ABS(N159-$D$11)+ABS(O159-$F$11) -> 608
J160: 157 | K160: 2297 | M160: 243 | N160: 229 | O160: 94 | Q160: =ABS(M160-$B$11)+ABS(N160-$D$11)+ABS(O160-$F$11) -> 566
J161: 158 | K161: 300 | M161: 242 | N161: 220 | O161: 39 | Q161: =ABS(M161-$B$11)+ABS(N161-$D$11)+ABS(O161-$F$11) -> 501
J162: 159 | K162: 301 | M162: 241 | N162: 204 | O162: 33 | Q162: =ABS(M162-$B$11)+ABS(N162-$D$11)+ABS(O162-$F$11) -> 478
J163: 160 | K163: 2301 | M163: 240 | N163: 191 | O163: 28 | Q163: =ABS(M163-$B$11)+ABS(N163-$D$11)+ABS(O163-$F$11) -> 459
J164: 161 | K164: 302 | M164: 234 | N164: 179 | O164: 24 | Q164: =ABS(M164-$B$11)+ABS(N164-$D$11)+ABS(O164-$F$11) -> 437
J165: 162 | K165: 3297 | M165: 240 | N165: 234 | O165: 98 | Q165: =ABS(M165-$B$11)+ABS(N165-$D$11)+ABS(O165-$F$11) -> 572
J166: 163 | K166: 298 | M166: 242 | N166: 221 | O166: 78 | Q166: =ABS(M166-$B$11)+ABS(N166-$D$11)+ABS(O166-$F$11) -> 541
J167: 164 | K167: 299 | M167: 235 | N167: 230 | O167: 50 | Q167: =ABS(M167-$B$11)+ABS(N167-$D$11)+ABS(O167-$F$11) -> 515
J168: 165 | K168: 2299 | M168: 243 | N168: 222 | O168: 41 | Q168: =ABS(M168-$B$11)+ABS(N168-$D$11)+ABS(O168-$F$11) -> 506
J169: 166 | K169: 3299 | M169: 235 | N169: 214 | O169: 33 | Q169: =ABS(M169-$B$11)+ABS(N169-$D$11)+ABS(O169-$F$11) -> 482
J170: 167 | K170: 2004 | M170: 228 | N170: 208 | O170: 51 | Q170: =ABS(M170-$B$11)+ABS(N170-$D$11)+ABS(O170-$F$11) -> 487
J171: 168 | K171: 2005 | M171: 220 | N171: 201 | O171: 47 | Q171: =ABS(M171-$B$11)+ABS(N171-$D$11)+ABS(O171-$F$11) -> 468
J172: 169 | K172: 2006 | M172: 213 | N172: 176 | O172: 35 | Q172: =ABS(M172-$B$11)+ABS(N172-$D$11)+ABS(O172-$F$11) -> 424
J173: 170 | K173: 2007 | M173: 229 | N173: 224 | O173: 72 | Q173: =ABS(M173-$B$11)+ABS(N173-$D$11)+ABS(O173-$F$11) -> 525
J174: 171 | K174: 2008 | M174: 237 | N174: 221 | O174: 47 | Q174: =ABS(M174-$B$11)+ABS(N174-$D$11)+ABS(O174-$F$11) -> 505
J175: 172 | K175: 2009 | M175: 204 | N175: 187 | O175: 45 | Q175: =ABS(M175-$B$11)+ABS(N175-$D$11)+ABS(O175-$F$11) -> 436
J176: 173 | K176: 700 | M176: 247 | N176: 217 | O176: 93 | Q176: =ABS(M176-$B$11)+ABS(N176-$D$11)+ABS(O176-$F$11) -> 557
J177: 174 | K177: 701 | M177: 236 | N177: 197 | O177: 66 | Q177: =ABS(M177-$B$11)+ABS(N177-$D$11)+ABS(O177-$F$11) -> 499
J178: 175 | K178: 702 | M178: 230 | N178: 178 | O178: 30 | Q178: =ABS(M178-$B$11)+ABS(N178-$D$11)+ABS(O178-$F$11) -> 438
J179: 176 | K179: 2702 | M179: 208 | N179: 149 | O179: 19 | Q179: =ABS(M179-$B$11)+ABS(N179-$D$11)+ABS(O179-$F$11) -> 376
J180: 177 | K180: 703 | M180: 188 | N180: 111 | O180: 31 | Q180: =ABS(M180-$B$11)+ABS(N180-$D$11)+ABS(O180-$F$11) -> 330
J181: 178 | K181: 704 | M181: 163 | N181: 94 | O181: 25 | Q181: =ABS(M181-$B$11)+ABS(N181-$D$11)+ABS(O181-$F$11) -> 282
J182: 179 | K182: 705A | M182: 140 | N182: 90 | O182: 39 | Q182: =ABS(M182-$B$11)+ABS(N182-$D$11)+ABS(O182-$F$11) -> 269
J183: 180 | K183: 706 | M183: 130 | N183: 76 | O183: 42 | Q183: =ABS(M183-$B$11)+ABS(N183-$D$11)+ABS(O183-$F$11) -> 248
J184: 181 | K184: 572 | M184: 233 | N184: 212 | O184: 147 | Q184: =ABS(M184-$B$11)+ABS(N184-$D$11)+ABS(O184-$F$11) -> 592
J185: 182 | K185: 573 | M185: 224 | N185: 206 | O185: 108 | Q185: =ABS(M185-$B$11)+ABS(N185-$D$11)+ABS(O185-$F$11) -> 538
J186: 183 | K186: 2573 | M186: 213 | N186: 172 | O186: 82 | Q186: =ABS(M186-$B$11)+ABS(N186-$D$11)+ABS(O186-$F$11) -> 467
J187: 184 | K187: 574 | M187: 223 | N187: 176 | O187: 60 | Q187: =ABS(M187-$B$11)+ABS(N187-$D$11)+ABS(O187-$F$11) -> 459
J188: 185 | K188: 575A | M188: 192 | N188: 146 | O188: 86 | Q188: =ABS(M188-$B$11)+ABS(N188-$D$11)+ABS(O188-$F$11) -> 424
J189: 186 | K189: 576 | M189: 160 | N189: 103 | O189: 26 | Q189: =ABS(M189-$B$11)+ABS(N189-$D$11)+ABS(O189-$F$11) -> 289
J190: 187 | K190: 577A | M190: 146 | N190: 94 | O190: 44 | Q190: =ABS(M190-$B$11)+ABS(N190-$D$11)+ABS(O190-$F$11) -> 284
J191: 188 | K191: 578 | M191: 120 | N191: 74 | O191: 40 | Q191: =ABS(M191-$B$11)+ABS(N191-$D$11)+ABS(O191-$F$11) -> 234
J192: 189 | K192: 771 | M192: 222 | N192: 196 | O192: 77 | Q192: =ABS(M192-$B$11)+ABS(N192-$D$11)+ABS(O192-$F$11) -> 495
J193: 190 | K193: 772 | M193: 212 | N193: 169 | O193: 30 | Q193: =ABS(M193-$B$11)+ABS(N193-$D$11)+ABS(O193-$F$11) -> 411
J194: 191 | K194: 773 | M194: 187 | N194: 146 | O194: 28 | Q194: =ABS(M194-$B$11)+ABS(N194-$D$11)+ABS(O194-$F$11) -> 361
J195: 192 | K195: 774 | M195: 161 | N195: 115 | O195: 27 | Q195: =ABS(M195-$B$11)+ABS(N195-$D$11)+ABS(O195-$F$11) -> 303
J196: 193 | K196: 775A | M196: 118 | N196: 97 | O196: 40 | Q196: =ABS(M196-$B$11)+ABS(N196-$D$11)+ABS(O196-$F$11) -> 255
J197: 194 | K197: 776 | M197: 113 | N197: 79 | O197: 42 | Q197: =ABS(M197-$B$11)+ABS(N197-$D$11)+ABS(O197-$F$11) -> 234
J198: 195 | K198: 820 | M198: 227 | N198: 222 | O198: 122 | Q198: =ABS(M198-$B$11)+ABS(N198-$D$11)+ABS(O198-$F$11) -> 571
J199: 196 | K199: 821 | M199: 223 | N199: 201 | O199: 90 | Q199: =ABS(M199-$B$11)+ABS(N199-$D$11)+ABS(O199-$F$11) -> 514
J200: 197 | K200: 822 | M200: 180 | N200: 157 | O200: 55 | Q200: =ABS(M200-$B$11)+ABS(N200-$D$11)+ABS(O200-$F$11) -> 392
J201: 198 | K201: 823 | M201: 141 | N201: 126 | O201: 41 | Q201: =ABS(M201-$B$11)+ABS(N201-$D$11)+ABS(O201-$F$11) -> 308
J202: 199 | K202: 825 | M202: 121 | N202: 96 | O202: 30 | Q202: =ABS(M202-$B$11)+ABS(N202-$D$11)+ABS(O202-$F$11) -> 247
... 301 more rows

Sheet RGB対応表
B3: 番号 | C3: 色 | D3: R | E3: G | F3: B | H3: 番号 | I3: 色 | J3: R | K3: G | L3: B | N3: 番号 | O3: 色 | P3: R | Q3: G | R3: B | T3: 番号 | U3: 色 | V3: R | W3: G | X3: B | Z3: 番号 | AA3: 色 | AB3: R | AC3: G | AD3: B | AF3: 番号 | AG3: 色 | AH3: R | AI3: G | AJ3: B | AL3: 番号 | AM3: 色 | AN3: R | AO3: G | AP3: B
B4: 351 | D4: 255 | E4: 216 | F4: 209 | H4: 220 | J4: 246 | K4: 212 | L4: 203 | N4: 101 | P4: 255 | Q4: 235 | R4: 216 | T4: 461 | V4: 221 | W4: 175 | X4: 149 | Z4: 140 | AB4: 246 | AC4: 232 | AD4: 183 | AF4: 572 | AH4: 233 | AI4: 212 | AJ4: 147 | AL4: 629 | AN4: 223 | AO4: 224 | AP4: 154
B5: 352 | D5: 252 | E5: 208 | F5: 207 | H5: 221 | J5: 232 | K5: 181 | L5: 186 | N5: 102 | P5: 244 | Q5: 207 | R5: 198 | T5: 462 | V5: 213 | W5: 154 | X5: 122 | Z5: 141 | AB5: 244 | AC5: 225 | AD5: 156 | AF5: 573 | AH5: 224 | AI5: 206 | AJ5: 108 | AL5: 630A | AN5: 193 | AO5: 196 | AP5: 105
B6: 353 | D6: 232 | E6: 125 | F6: 151 | H6: 2221 | J6: 222 | K6: 165 | L6: 171 | N6: 103A | P6: 233 | Q6: 194 | R6: 187 | T6: 463 | V6: 194 | W6: 118 | X6: 95 | Z6: 142 | AB6: 248 | AC6: 211 | AD6: 120 | AF6: 2573 | AH6: 213 | AI6: 172 | AJ6: 82 | AL6: 631 | AN6: 156 | AO6: 173 | AP6: 81
B7: 354 | D7: 224 | E7: 97 | F7: 140 | H7: 222 | J7: 211 | K7: 131 | L7: 144 | N7: 104 | P7: 228 | Q7: 164 | R7: 162 | T7: 464 | V7: 179 | W7: 90 | X7: 72 | Z7: 143 | AB7: 244 | AC7: 187 | AD7: 72 | AF7: 574 | AH7: 223 | AI7: 176 | AJ7: 60 | AL7: 2631 | AN7: 135 | AO7: 151 | AP7: 76
B8: 480A | D8: 245 | E8: 203 | F8: 213 | H8: 2222 | J8: 196 | K8: 108 | L8: 124 | N8: 105 | P8: 221 | Q8: 134 | R8: 142 | T8: 465 | V8: 161 | W8: 77 | X8: 67 | Z8: 144A | AB8: 237 | AC8: 167 | AD8: 37 | AF8: 575A | AH8: 192 | AI8: 146 | AJ8: 86 | AL8: 632 | AN8: 104 | AO8: 135 | AP8: 65
B9: 2111 | D9: 242 | E9: 180 | F9: 191 | H9: 223 | J9: 163 | K9: 77 | L9: 114 | N9: 1105 | P9: 204 | Q9: 81 | R9: 101 | T9: 466 | V9: 151 | W9: 58 | X9: 50 | Z9: 145 | AB9: 229 | AC9: 136 | AD9: 33 | AF9: 576 | AH9: 160 | AI9: 103 | AJ9: 26 | AL9: 633 | AN9: 97 | AO9: 125 | AP9: 40
B10: 112 | D10: 238 | E10: 159 | F10: 181 | H10: 2223 | J10: 160 | K10: 59 | L10: 89 | N10: 2105 | P10: 199 | Q10: 82 | R10: 91 | T10: 467 | V10: 138 | W10: 34 | X10: 43 | Z10: 146 | AB10: 222 | AC10: 111 | AD10: 29 | AF10: 577A | AH10: 146 | AI10: 94 | AJ10: 44 | AL10: 634 | AN10: 69 | AO10: 92 | AP10: 36
B11: 113 | D11: 228 | E11: 103 | F11: 145 | H11: 224 | J11: 124 | K11: 46 | L11: 85 | N11: 106 | P11: 195 | Q11: 56 | R11: 79 | T11: 185A | V11: 247 | W11: 189 | X11: 149 | Z11: 147 | AB11: 200 | AC11: 78 | AD11: 27 | AF11: 578 | AH11: 120 | AI11: 74 | AJ11: 40 | AL11: 635A | AN11: 78 | AO11: 91 | AP11: 38
B12: 114 | D12: 220 | E12: 78 | F12: 136 | H12: 2224 | J12: 109 | K12: 42 | L12: 75 | N12: 107 | P12: 177 | Q12: 39 | R12: 73 | T12: 2185 | V12: 238 | W12: 174 | X12: 126 | Z12: 297 | AB12: 245 | AC12: 237 | AD12: 126 | AF12: 771 | AH12: 222 | AI12: 196 | AJ12: 77 | AL12: 636 | AN12: 38 | AO12: 65 | AP12: 34
B13: 2114 | D13: 215 | E13: 55 | F13: 115 | H13: 225 | J13: 99 | K13: 39 | L13: 65 | N13: 2242 | P13: 163 | Q13: 29 | R13: 64 | T13: 3185 | V13: 217 | W13: 137 | X13: 88 | Z13: 2297 | AB13: 243 | AC13: 229 | AD13: 94 | AF13: 772 | AH13: 212 | AI13: 169 | AJ13: 30 | AL13: 637 | AN13: 31 | AO13: 57 | AP13: 28
B14: 115A | D14: 207 | E14: 31 | F14: 78 | H14: 226 | J14: 71 | K14: 38 | L14: 59 | N14: 108 | P14: 151 | Q14: 28 | R14: 48 | T14: 186 | V14: 194 | W14: 103 | X14: 48 | Z14: 300 | AB14: 242 | AC14: 220 | AD14: 39 | AF14: 773 | AH14: 187 | AI14: 146 | AJ14: 28 | AL14: 116 | AN14: 184 | AO14: 194 | AP14: 98
B15: 2115 | D15: 201 | E15: 28 | F15: 74 | H15: 811 | J15: 249 | K15: 198 | L15: 195 | N15: 4300 | P15: 132 | Q15: 31 | R15: 71 | T15: 2186 | V15: 186 | W15: 73 | X15: 59 | Z15: 301 | AB15: 241 | AC15: 204 | AD15: 33 | AF15: 774 | AH15: 161 | AI15: 115 | AJ15: 27 | AL15: 117 | AN15: 163 | AO15: 183 | AP15: 86
B16: 3115 | D16: 195 | E16: 24 | F16: 76 | H16: 812 | J16: 234 | K16: 159 | L16: 164 | N16: 111 | P16: 248 | Q16: 210 | R16: 209 | T16: 187 | V16: 176 | W16: 51 | X16: 49 | Z16: 2301 | AB16: 240 | AC16: 191 | AD16: 28 | AF16: 775A | AH16: 118 | AI16: 97 | AJ16: 40 | AL16: 2117 | AN16: 130 | AO16: 156 | AP16: 82
B17: 203 | D17: 243 | E17: 126 | F17: 153 | H17: 813 | J17: 213 | K17: 111 | L17: 125 | N17: 832 | P17: 240 | Q17: 201 | R17: 194 | T17: 188 | V17: 162 | W17: 32 | X17: 40 | Z17: 302 | AB17: 234 | AC17: 179 | AD17: 24 | AF17: 776 | AH17: 113 | AI17: 79 | AJ17: 42 | AL17: 118 | AN17: 112 | AO17: 148 | AP17: 74
B18: 204 | D18: 218 | E18: 70 | F18: 122 | H18: 814 | J18: 178 | K18: 68 | L18: 95 | N18: 833 | P18: 239 | Q18: 171 | R18: 172 | T18: 402 | V18: 248 | W18: 187 | X18: 130 | Z18: 3297 | AB18: 240 | AC18: 234 | AD18: 98 | AF18: 820 | AH18: 227 | AI18: 222 | AJ18: 122 | AL18: 2118 | AN18: 107 | AO18: 134 | AP18: 55
B19: 205A | D19: 214 | E19: 47 | F19: 99 | H19: 815 | J19: 156 | K19: 52 | L19: 87 | N19: 834A | P19: 216 | Q19: 120 | R19: 121 | T19: 1402 | V19: 240 | W19: 163 | X19: 95 | Z19: 298 | AB19: 242 | AC19: 221 | AD19: 78 | AF19: 821 | AH19: 223 | AI19: 201 | AJ19: 90 | AL19: 119 | AN19: 52 | AO19: 98 | AP19: 49
B20: 240 | D20: 195 | E20: 27 | F20: 63 | H20: 816A | J20: 129 | K20: 33 | L20: 71 | N20: 2835 | P20: 210 | Q20: 72 | R20: 95 | T20: 2402 | V20: 227 | W20: 134 | X20: 75 | Z20: 299 | AB20: 235 | AC20: 230 | AD20: 50 | AF20: 822 | AH20: 180 | AI20: 157 | AJ20: 55 | AL20: 120 | AN20: 14 | AO20: 89 | AP20: 46
B21: 241A | D21: 173 | E21: 26 | F21: 70 | H21: 431 | J21: 221 | K21: 163 | L21: 162 | N21: 206 | P21: 209 | Q21: 38 | R21: 72 | T21: 403 | V21: 224 | W21: 109 | X21: 64 | Z21: 2299 | AB21: 243 | AC21: 222 | AD21: 41 | AF21: 823 | AH21: 141 | AI21: 126 | AJ21: 41 | AL21: 2120 | AN21: 21 | AO21: 96 | AP21: 57
B22: 1241 | D22: 143 | E22: 30 | F22: 58 | H22: 432A | J22: 192 | K22: 123 | L22: 142 | N22: 836 | P22: 199 | Q22: 47 | R22: 60 | T22: 404 | V22: 196 | W22: 80 | X22: 55 | Z22: 3299 | AB22: 235 | AC22: 214 | AD22: 33 | AF22: 825 | AH22: 121 | AI22: 96 | AJ22: 30 | AL22: 121 | AN22: 7 | AO22: 63 | AP22: 38
B23: 242 | D23: 142 | E23: 32 | F23: 69 | H23: 433 | J23: 163 | K23: 86 | L23: 102 | N23: 838 | P23: 202 | Q23: 34 | R23: 57 | T23: 405 | V23: 186 | W23: 77 | X23: 48 | Z23: 2004 | AB23: 228 | AC23: 208 | AD23: 51 | AF23: 826 | AH23: 84 | AI23: 76 | AJ23: 27 | AL23: 122 | AN23: 6 | AO23: 42 | AP23: 30
B24: 2241 | D24: 120 | E24: 32 | F24: 56 | H24: 434 | J24: 139 | K24: 75 | L24: 91 | N24: 2001 | P24: 207 | Q24: 29 | R24: 107 | T24: 406 | V24: 164 | W24: 45 | X24: 47 | Z24: 2005 | AB24: 220 | AC24: 201 | AD24: 47 | AF24: 671 | AH24: 186 | AI24: 177 | AJ24: 50 | AL24: 2010 | AN24: 196 | AO24: 201 | AP24: 49
B25: 245 | D25: 86 | E25: 33 | F25: 61 | H25: 435 | J25: 111 | K25: 49 | L25: 70 | N25: 2002 | P25: 165 | Q25: 24 | R25: 100 | T25: 440 | V25: 240 | W25: 160 | X25: 133 | Z25: 2006 | AB25: 213 | AC25: 176 | AD25: 35 | AF25: 673 | AH25: 132 | AI25: 119 | AJ25: 49 | AL25: 2011 | AN25: 158 | AO25: 175 | AP25: 35
B26: 2245 | D26: 74 | E26: 29 | F26: 60 | H26: 437 | J26: 91 | K26: 28 | L26: 55 | N26: 2003 | P26: 122 | Q26: 31 | R26: 98 | T26: 441 | V26: 236 | W26: 139 | X26: 107 | Z26: 2007 | AB26: 229 | AC26: 224 | AD26: 72 | AF26: 674 | AH26: 112 | AI26: 106 | AJ26: 44 | AL26: 2012 | AN26: 96 | AO26: 114 | AP26: 64
B27: 246 | D27: 70 | E27: 24 | F27: 52 | H27: 232 | J27: 221 | K27: 165 | L27: 168 | N27: 341 | P27: 234 | Q27: 191 | R27: 146 | T27: 443 | V27: 226 | W27: 99 | X27: 67 | Z27: 2008 | AB27: 237 | AC27: 221 | AD27: 47 | AF27: 675A | AH27: 86 | AI27: 95 | AJ27: 40 | AL27: 2013 | AN27: 70 | AO27: 98 | AP27: 50
B28: 247 | D28: 63 | E28: 29 | F28: 53 | H28: 233 | J28: 212 | K28: 158 | L28: 156 | N28: 2341 | P28: 228 | Q28: 146 | R28: 99 | T28: 444A | V28: 216 | W28: 65 | X28: 56 | Z28: 2009 | AB28: 204 | AC28: 187 | AD28: 45 | AF28: 676 | AH28: 62 | AI28: 63 | AJ28: 31 | AL28: 2014 | AN28: 54 | AO28: 79 | AP28: 39
B29: 499 | D29: 249 | E29: 175 | F29: 190 | H29: 234 | J29: 185 | K29: 138 | L29: 144 | N29: 342 | P29: 226 | Q29: 120 | R29: 96 | T29: 445A | V29: 210 | W29: 38 | X29: 52 | Z29: 700 | AB29: 247 | AC29: 217 | AD29: 93 | AF29: 681 | AH29: 219 | AI29: 220 | AJ29: 176 | AL29: 323 | AN29: 201 | AO29: 211 | AP29: 114
B30: 501 | D30: 233 | E30: 138 | F30: 170 | H30: 235 | J30: 145 | K30: 97 | L30: 109 | N30: 343 | P30: 207 | Q30: 62 | R30: 57 | T30: 340 | V30: 246 | W30: 216 | X30: 182 | Z30: 701 | AB30: 236 | AC30: 197 | AD30: 66 | AF30: 682 | AH30: 207 | AI30: 212 | AJ30: 148 | AL30: 2323 | AN30: 189 | AO30: 206 | AP30: 100
B31: 502 | D31: 214 | E31: 91 | F31: 138 | H31: 236 | J31: 105 | K31: 64 | L31: 68 | N31: 2343 | P31: 201 | Q31: 51 | R31: 53 | T31: 750A | V31: 239 | W31: 189 | X31: 154 | Z31: 702 | AB31: 230 | AC31: 178 | AD31: 30 | AF31: 683 | AH31: 188 | AI31: 184 | AJ31: 111 | AL31: 324 | AN31: 147 | AO31: 180 | AP31: 39
B32: 503 | D32: 200 | E32: 69 | F32: 123 | H32: 3661 | J32: 236 | K32: 202 | L32: 192 | N32: 344 | P32: 189 | Q32: 38 | R32: 45 | T32: 752 | V32: 235 | W32: 158 | X32: 104 | Z32: 2702 | AB32: 208 | AC32: 149 | AD32: 19 | AF32: 684 | AH32: 133 | AI32: 138 | AJ32: 72 | AL32: 325A | AN32: 99 | AO32: 150 | AP32: 32
B33: 504 | D33: 197 | E33: 60 | F33: 112 | H33: 652 | J33: 223 | K33: 165 | L33: 161 | N33: 345 | P33: 183 | Q33: 27 | R33: 48 | T33: 753 | V33: 231 | W33: 124 | X33: 68 | Z33: 703 | AB33: 188 | AC33: 111 | AD33: 31 | AF33: 685 | AH33: 107 | AI33: 106 | AJ33: 50 | AL33: 326 | AN33: 42 | AO33: 142 | AP33: 52
B34: 505A | D34: 192 | E34: 44 | F34: 94 | H34: 2652 | J34: 210 | K34: 146 | L34: 146 | N34: 346 | P34: 173 | Q34: 27 | R34: 46 | T34: 754 | V34: 225 | W34: 81 | X34: 46 | Z34: 704 | AB34: 163 | AC34: 94 | AD34: 25 | AF34: 686 | AH34: 67 | AI34: 72 | AJ34: 40 | AL34: 327 | AN34: 49 | AO34: 120 | AP34: 64
B35: 506 | D35: 184 | E35: 26 | F35: 75 | H35: 653 | J35: 188 | K35: 113 | L35: 107 | N35: 798 | P35: 205 | Q35: 28 | R35: 54 | T35: 757 | V35: 206 | W35: 48 | X35: 39 | Z35: 705A | AB35: 140 | AC35: 90 | AD35: 39 | AF35: 687 | AH35: 64 | AI35: 60 | AJ35: 35 | AL35: 328 | AN35: 21 | AO35: 105 | AP35: 56
B36: 2480 | D36: 238 | E36: 182 | F36: 207 | H36: 654 | J36: 157 | K36: 67 | L36: 67 | N36: 800 | P36: 191 | Q36: 25 | R36: 61 | T36: 758 | V36: 200 | W36: 68 | X36: 45 | Z36: 706 | AB36: 130 | AC36: 76 | AD36: 42 | AF36: 921 | AH36: 176 | AI36: 193 | AJ36: 139 | AL36: 329 | AN36: 7 | AO36: 89 | AP36: 49
B37: 481A | D37: 223 | E37: 144 | F37: 176 | H37: 655 | J37: 140 | K37: 54 | L37: 53 | N37: 851 | P37: 234 | Q37: 181 | R37: 165 | AF37: 922 | AH37: 164 | AI37: 183 | AJ37: 128 | AL37: 269 | AN37: 200 | AO37: 219 | AP37: 129
B38: 482 | D38: 208 | E38: 116 | F38: 153 | H38: 656 | J38: 105 | K38: 24 | L38: 41 | N38: 852 | P38: 229 | Q38: 153 | R38: 139 | AF38: 923 | AH38: 133 | AI38: 152 | AJ38: 97 | AL38: 270 | AN38: 182 | AO38: 205 | AP38: 53
B39: 483 | D39: 188 | E39: 83 | F39: 140 | N39: 853 | P39: 226 | Q39: 134 | R39: 111 | AF39: 924 | AH39: 93 | AI39: 123 | AJ39: 61 | AL39: 271 | AN39: 101 | AO39: 170 | AP39: 61
B40: 484A | D40: 158 | E40: 68 | F40: 129 | N40: 854 | P40: 202 | Q40: 85 | R40: 78 | AF40: 2924 | AH40: 76 | AI40: 82 | AJ40: 48 | AL40: 272 | AN40: 76 | AO40: 157 | AP40: 62
B41: 485A | D41: 143 | E41: 46 | F41: 115 | N41: 855 | P41: 183 | Q41: 57 | R41: 60 | AF41: 925 | AH41: 68 | AI41: 74 | AJ41: 38 | AL41: 273 | AN41: 26 | AO41: 151 | AP41: 59
B42: 486 | D42: 121 | E42: 40 | F42: 107 | N42: 857 | P42: 167 | Q42: 41 | R42: 53 | AF42: 926 | AH42: 51 | AI42: 61 | AJ42: 27 | AL42: 274 | AN42: 25 | AO42: 137 | AP42: 65
N43: 858 | P43: 143 | Q43: 30 | R43: 48 | AF43: 927 | AH43: 47 | AI43: 58 | AJ43: 50 | AL43: 275 | AN43: 18 | AO43: 118 | AP43: 64
AL44: 276 | AN44: 12 | AO44: 117 | AP44: 60
AL45: 4905 | AN45: 8 | AO45: 106 | AP45: 59
B48: 番号 | C48: 色 | D48: R | E48: G | F48: B | H48: 番号 | I48: 色 | J48: R | K48: G | L48: B | N48: 番号 | O48: 色 | P48: R | Q48: G | R48: B | T48: 番号 | U48: 色 | V48: R | W48: G | X48: B | Z48: 番号 | AA48: 色 | AB48: R | AC48: G | AD48: B | AF48: 番号 | AG48: 色 | AH48: R | AI48: G | AJ48: B | AL48: 番号 | AM48: 色 | AN48: R | AO48: G | AP48: B
B49: 316A | D49: 165 | E49: 191 | F49: 152 | H49: 980 | J49: 166 | K49: 182 | L49: 171 | N49: 410A | P49: 209 | Q49: 232 | R49: 240 | T49: 171A | V49: 221 | W49: 220 | X49: 226 | Z49: 261 | AB49: 202 | AC49: 173 | AD49: 193 | AF49: 1000 | AH49: 246 | AI49: 223 | AJ49: 179 | AL49: 151 | AN49: 224 | AO49: 220 | AP49: 211
B50: 317 | D50: 148 | E50: 184 | F50: 148 | H50: 981A | J50: 132 | K50: 158 | L50: 149 | N50: 411 | P50: 172 | Q50: 213 | R50: 235 | T50: 172A | V50: 199 | W50: 191 | X50: 204 | Z50: 262 | AB50: 188 | AC50: 158 | AD50: 184 | AF50: 305 | AH50: 233 | AI50: 211 | AJ50: 164 | AL50: 890 | AN50: 182 | AO50: 184 | AP50: 170
B51: 2317 | D51: 134 | E51: 174 | F51: 140 | H51: 2981 | J51: 111 | K51: 137 | L51: 128 | N51: 412 | P51: 102 | Q51: 191 | R51: 223 | T51: 2172 | V51: 165 | W51: 155 | X51: 180 | Z51: 2262 | AB51: 165 | AC51: 128 | AD51: 161 | AF51: 306 | AH51: 226 | AI51: 196 | AJ51: 136 | AL51: 891 | AN51: 162 | AO51: 165 | AP51: 144
B52: 318 | D52: 71 | E52: 123 | F52: 87 | H52: 982 | J52: 50 | K52: 110 | L52: 108 | N52: 2412 | P52: 38 | Q52: 169 | R52: 211 | T52: 173 | V52: 135 | W52: 117 | X52: 167 | Z52: 263 | AB52: 122 | AC52: 79 | AD52: 148 | AF52: 307 | AH52: 221 | AI52: 185 | AJ52: 127 | AL52: 892 | AN52: 134 | AO52: 135 | AP52: 129
B53: 319 | D53: 23 | E53: 101 | F53: 62 | H53: 983 | J53: 21 | K53: 91 | L53: 93 | N53: 413 | P53: 27 | Q53: 140 | R53: 198 | T53: 174 | V53: 114 | W53: 96 | X53: 156 | Z53: 264 | AB53: 132 | AC53: 77 | AD53: 132 | AF53: 2307 | AH53: 203 | AI53: 154 | AJ53: 87 | AL53: 893 | AN53: 96 | AO53: 107 | AP53: 99
B54: 2319 | D54: 14 | E54: 90 | F54: 54 | H54: 984 | J54: 13 | K54: 78 | L54: 80 | N54: 414A | P54: 17 | Q54: 133 | R54: 194 | T54: 175 | V54: 99 | W54: 83 | X54: 148 | Z54: 265 | AB54: 119 | AC54: 71 | AD54: 123 | AF54: 308 | AH54: 169 | AI54: 104 | AJ54: 72 | AL54: 894 | AN54: 75 | AO54: 88 | AP54: 70
B55: 320 | D55: 6 | E55: 86 | F55: 49 | H55: 371 | J55: 126 | K55: 196 | L55: 194 | N55: 415A | P55: 5 | Q55: 105 | R55: 167 | T55: 176 | V55: 86 | W55: 69 | X55: 137 | Z55: 266 | AB55: 84 | AC55: 52 | AD55: 99 | AF55: 309 | AH55: 153 | AI55: 94 | AJ55: 50 | AL55: 895 | AN55: 38 | AO55: 58 | AP55: 57
B56: 2015 | D56: 59 | E56: 98 | F56: 71 | H56: 372 | J56: 94 | K56: 181 | L56: 188 | N56: 2021 | P56: 155 | Q56: 205 | R56: 214 | T56: 551 | V56: 200 | W56: 193 | X56: 201 | Z56: 281 | AB56: 215 | AC56: 199 | AD56: 199 | AF56: 2310 | AH56: 107 | AI56: 56 | AJ56: 29 | AL56: 2151 | AN56: 179 | AO56: 176 | AP56: 157
B57: 2016 | D57: 20 | E57: 60 | F57: 52 | H57: 373 | J57: 79 | K57: 167 | L57: 171 | N57: 2022 | P57: 23 | Q57: 173 | R57: 197 | T57: 552 | V57: 186 | W57: 178 | X57: 189 | Z57: 2281 | AB57: 196 | AC57: 172 | AD57: 186 | AF57: 310 | AH57: 117 | AI57: 63 | AJ57: 51 | AL57: 152A | AN57: 162 | AO57: 164 | AP57: 150
B58: 533A | D58: 156 | E58: 191 | F58: 159 | H58: 374 | J58: 53 | K58: 158 | L58: 161 | N58: 2023 | P58: 18 | Q58: 152 | R58: 190 | T58: 553 | V58: 174 | W58: 165 | X58: 184 | Z58: 282 | AB58: 169 | AC58: 123 | AD58: 169 | AF58: 311 | AH58: 104 | AI58: 66 | AJ58: 55 | AL58: 153A | AN58: 122 | AO58: 127 | AP58: 121
B59: 534A | D59: 102 | E59: 157 | F59: 128 | H59: 375 | J59: 31 | K59: 123 | L59: 138 | N59: 2024 | P59: 15 | Q59: 138 | R59: 182 | T59: 554 | V59: 140 | W59: 124 | X59: 161 | Z59: 283 | AB59: 116 | AC59: 75 | AD59: 145 | AF59: 3311 | AH59: 81 | AI59: 52 | AJ59: 48 | AL59: 154 | AN59: 89 | AO59: 100 | AP59: 92
B60: 535 | D60: 89 | E60: 138 | F60: 108 | H60: 376 | J60: 12 | K60: 102 | L60: 113 | N60: 2025 | P60: 54 | Q60: 164 | R60: 201 | T60: 555 | V60: 77 | W60: 75 | X60: 122 | Z60: 284 | AB60: 108 | AC60: 67 | AD60: 137 | AF60: 4311 | AH60: 57 | AI60: 38 | AJ60: 44 | AL60: 2154 | AN60: 76 | AO60: 87 | AP60: 83
B61: 2535 | D61: 60 | E61: 120 | F61: 86 | H61: 211 | J61: 207 | K61: 227 | L61: 226 | N61: 2026 | P61: 23 | Q61: 152 | R61: 184 | T61: 556 | V61: 59 | W61: 63 | X61: 100 | Z61: 285 | AB61: 99 | AC61: 58 | AD61: 128 | AF61: 312 | AH61: 42 | AI61: 32 | AJ61: 30 | AL61: 155 | AN61: 61 | AO61: 72 | AP61: 68
B62: 536A | D62: 28 | E62: 96 | F62: 73 | H62: 2251 | J62: 143 | K62: 193 | L62: 192 | N62: 2027 | P62: 11 | Q62: 106 | R62: 164 | T62: 557 | V62: 24 | W62: 39 | X62: 72 | Z62: 286 | AB62: 91 | AC62: 51 | AD62: 111 | AF62: 2036 | AH62: 181 | AI62: 165 | AJ62: 142 | AL62: 156 | AN62: 25 | AO62: 44 | AP62: 48
B63: 2536A | D63: 10 | E63: 81 | F63: 67 | H63: 252 | J63: 113 | K63: 174 | L63: 179 | N63: 520 | P63: 218 | Q63: 228 | R63: 230 | T63: 2028 | V63: 97 | W63: 95 | X63: 106 | Z63: 287A | AB63: 87 | AC63: 48 | AD63: 101 | AF63: 2037 | AH63: 135 | AI63: 115 | AJ63: 90 | AL63: 472 | AN63: 190 | AO63: 186 | AP63: 177
B64: 537 | D64: 8 | E64: 79 | F64: 61 | H64: 253 | J64: 54 | K64: 149 | L64: 167 | N64: 521A | P64: 189 | Q64: 219 | R64: 219 | T64: 2029 | V64: 61 | W64: 61 | X64: 87 | Z64: 380 | AB64: 204 | AC64: 182 | AD64: 159 | AF64: 2038 | AH64: 79 | AI64: 63 | AJ64: 48 | AL64: 473 | AN64: 179 | AO64: 175 | AP64: 163
B65: 538 | D65: 3 | E65: 64 | F65: 59 | H65: 2253 | J65: 38 | K65: 126 | L65: 162 | N65: 522 | P65: 163 | Q65: 201 | R65: 214 | T65: 2030 | V65: 28 | W65: 37 | X65: 44 | Z65: 382 | AB65: 189 | AC65: 158 | AD65: 129 | AF65: 2039 | AH65: 109 | AI65: 89 | AJ65: 56 | AL65: 474 | AN65: 152 | AO65: 143 | AP65: 136
B66: 333 | D66: 187 | E66: 221 | F66: 196 | H66: 254 | J66: 14 | K66: 108 | L66: 134 | N66: 523 | P66: 140 | Q66: 181 | R66: 209 | T66: 761 | V66: 189 | W66: 179 | X66: 178 | Z66: 383 | AB66: 163 | AC66: 121 | AD66: 97 | AF66: 2040 | AH66: 86 | AI66: 65 | AJ66: 38 | AL66: 475 | AN66: 117 | AO66: 108 | AP66: 101
B67: 334 | D67: 100 | E67: 186 | F67: 137 | H67: 2017 | J67: 114 | K67: 162 | L67: 172 | N67: 2212 | P67: 107 | Q67: 162 | R67: 192 | T67: 762 | V67: 148 | W67: 142 | X67: 144 | Z67: 384 | AB67: 135 | AC67: 86 | AD67: 71 | AF67: 364 | AH67: 235 | AI67: 228 | AJ67: 209 | AL67: 476 | AN67: 70 | AO67: 70 | AP67: 70
B68: 335 | D68: 41 | E68: 150 | F68: 95 | H68: 2018 | J68: 90 | K68: 137 | L68: 147 | N68: 214 | P68: 73 | Q68: 135 | R68: 184 | T68: 2762 | V68: 129 | W68: 111 | X68: 123 | Z68: 386 | AB68: 116 | AC68: 73 | AD68: 57 | AF68: 365 | AH68: 221 | AI68: 216 | AJ68: 194 | AL68: 477 | AN68: 52 | AO68: 48 | AP68: 49
B69: 336 | D69: 20 | E69: 133 | F69: 81 | H69: 2019 | J69: 22 | K69: 99 | L69: 109 | N69: 525 | P69: 67 | Q69: 112 | R69: 167 | T69: 763 | V69: 111 | W69: 93 | X69: 105 | Z69: 423 | AB69: 219 | AC69: 188 | AD69: 160 | AF69: 366 | AH69: 206 | AI69: 198 | AJ69: 152 | AL69: 478 | AN69: 32 | AO69: 36 | AP69: 45
B70: 337 | D70: 12 | E70: 122 | F70: 75 | H70: 2020 | J70: 13 | K70: 51 | L70: 64 | N70: 526 | P70: 56 | Q70: 96 | R70: 158 | T70: 764 | V70: 97 | W70: 78 | X70: 100 | Z70: 424 | AB70: 215 | AC70: 170 | AD70: 137 | AF70: 367 | AH70: 160 | AI70: 145 | AJ70: 106 | AL70: 600 | AN70: 5 | AO70: 5 | AP70: 5
B71: 338 | D71: 5 | E71: 100 | F71: 56 | H71: 730 | J71: 166 | K71: 199 | L71: 204 | N71: 2214 | P71: 18 | Q71: 81 | R71: 161 | T71: 765 | V71: 77 | W71: 64 | X71: 84 | Z71: 2424 | AB71: 189 | AC71: 137 | AD71: 90 | AF71: 368 | AH71: 121 | AI71: 116 | AJ71: 86 | AL71: 601 | AN71: 13 | AO71: 33 | AP71: 32
B72: 842 | D72: 117 | E72: 193 | F72: 167 | H72: 731 | J72: 152 | K72: 180 | L72: 191 | N72: 216 | P72: 14 | Q72: 72 | R72: 136 | T72: 766 | V72: 45 | W72: 37 | X72: 50 | Z72: 425 | AB72: 184 | AC72: 119 | AD72: 87 | AF72: 369 | AH72: 93 | AI72: 80 | AJ72: 61 | AL72: 602 | AN72: 1 | AO72: 13 | AP72: 25
B73: 843 | D73: 86 | E73: 170 | F73: 147 | H73: 732 | J73: 122 | K73: 153 | L73: 173 | N73: 218 | P73: 11 | Q73: 65 | R73: 127 | T73: 2031 | V73: 178 | W73: 132 | X73: 160 | Z73: 426 | AB73: 137 | AC73: 75 | AD73: 52 | AF73: 370 | AH73: 66 | AI73: 51 | AJ73: 32 | AL73: 603 | AN73: 10 | AO73: 10 | AP73: 10
B74: 844 | D74: 35 | E74: 156 | F74: 121 | H74: 733 | J74: 103 | K74: 140 | L74: 158 | N74: 4792 | P74: 9 | Q74: 59 | R74: 122 | T74: 2032 | V74: 141 | W74: 79 | X74: 116 | Z74: 126A | AB74: 226 | AC74: 173 | AD74: 131 | AF74: 711 | AH74: 213 | AI74: 208 | AJ74: 186 | AL74: 2500 | AN74: 245 | AO74: 245 | AP74: 245
B75: 845 | D75: 17 | E75: 127 | F75: 90 | H75: 734 | J75: 42 | K75: 109 | L75: 126 | N75: 662 | P75: 141 | Q75: 160 | R75: 190 | T75: 2033 | V75: 100 | W75: 45 | X75: 74 | Z75: 127 | AB75: 216 | AC75: 153 | AD75: 110 | AF75: 712 | AH75: 196 | AI75: 191 | AJ75: 169 | AL75: 500 | AN75: 247 | AO75: 248 | AP75: 242
B76: 846 | D76: 10 | E76: 106 | F76: 68 | H76: 735 | J76: 28 | K76: 70 | L76: 86 | N76: 2662 | P76: 105 | Q76: 134 | R76: 174 | T76: 2034 | V76: 198 | W76: 177 | X76: 184 | Z76: 128 | AB76: 191 | AC76: 113 | AD76: 65 | AF76: 713 | AH76: 188 | AI76: 176 | AJ76: 152 | AL76: 100 | AN76: 250 | AO76: 251 | AP76: 245
B77: 896 | D77: 133 | E77: 203 | F77: 195 | H77: 162A | J77: 158 | K77: 202 | L77: 213 | N77: 663 | P77: 85 | Q77: 117 | R77: 166 | T77: 2035 | V77: 98 | W77: 70 | X77: 85 | Z77: 129 | AB77: 171 | AC77: 86 | AD77: 55 | AF77: 714 | AH77: 160 | AI77: 149 | AJ77: 121 | AL77: 110 | AN77: 243 | AO77: 245 | AP77: 231
B78: 897 | D78: 102 | E78: 189 | F78: 181 | H78: 163 | J78: 147 | K78: 184 | L78: 202 | N78: 664A | P78: 58 | Q78: 86 | R78: 149 | Z78: 2129 | AB78: 156 | AC78: 75 | AD78: 48 | AF78: 715 | AH78: 109 | AI78: 104 | AJ78: 85
B79: 898 | D79: 58 | E79: 174 | F79: 161 | H79: 164 | J79: 77 | K79: 133 | L79: 160 | N79: 2664 | P79: 48 | Q79: 78 | R79: 138 | Z79: 130 | AB79: 119 | AC79: 46 | AD79: 39 | AF79: 716 | AH79: 93 | AI79: 85 | AJ79: 66
B80: 899 | D80: 31 | E80: 165 | F80: 141 | H80: 165A | J80: 34 | K80: 111 | L80: 155 | N80: 665 | P80: 37 | Q80: 62 | R80: 118 | Z80: 131 | AB80: 100 | AC80: 39 | AD80: 36 | AF80: 717 | AH80: 71 | AI80: 64 | AJ80: 46
B81: 900 | D81: 19 | E81: 130 | F81: 113 | H81: 166 | J81: 13 | K81: 95 | L81: 143 | N81: 667A | P81: 31 | Q81: 48 | R81: 92 | Z81: 2311 | AB81: 76 | AC81: 37 | AD81: 30 | AF81: 718 | AH81: 62 | AI81: 57 | AJ81: 27
B82: 902 | D82: 5 | E82: 116 | F82: 100 | H82: 167 | J82: 3 | K82: 84 | L82: 127 | N82: 668 | P82: 23 | Q82: 42 | R82: 72 | AF82: 2041 | AH82: 62 | AI82: 69 | AJ82: 53
B83: 2211 | D83: 203 | E83: 228 | F83: 225 | H83: 2167 | J83: 22 | K83: 59 | L83: 103 | N83: 669A | P83: 18 | Q83: 34 | R83: 59
B84: 561 | D84: 174 | E84: 215 | F84: 201 | H84: 168 | J84: 10 | K84: 53 | L84: 88
B85: 562 | D85: 145 | E85: 200 | F85: 197 | H85: 169 | J85: 8 | K85: 43 | L85: 71
B86: 563 | D86: 81 | E86: 186 | F86: 181
B87: 2563 | D87: 72 | E87: 165 | F87: 170
B88: 564 | D88: 33 | E88: 151 | F88: 137
B89: 566 | D89: 18 | E89: 124 | F89: 112
